{"text_format":"3","workbook":"xlsx","n_sheets":2,"sheets":["申报表","Sheet2"],"not_rendered":{"defined_names":2,"comments":1},"read":"whole","date_system":"1900"}

{"sheet":"申报表","index":0,"n_rows":345,"n_cols":25,"rows_kept":345,"merged":[[0,0,0,24],[1,0,1,2],[1,20,1,24],[2,0,4,0],[2,1,2,3],[2,4,4,4],[2,5,4,5],[2,6,4,6],[2,7,4,7],[2,8,4,8],[2,9,2,10],[2,11,4,11],[2,12,4,12],[2,13,2,15],[2,16,2,21],[2,22,4,22],[2,23,4,23],[2,24,4,24],[3,1,4,1],[3,2,4,2],[3,3,4,3],[3,9,4,9],[3,10,4,10],[3,13,4,13],[3,14,3,15],[3,16,4,16],[3,17,4,17],[3,18,4,18],[3,19,3,21],[344,0,344,5]]}
["临湘市2025年度巩固拓展脱贫攻坚成果和乡村振兴项目库拟入库申报表"]
["单位：(盖章)",{"$nulls":19},"时间： 2024年"]
["序号","项目类别",null,null,"乡","村","项目名称","建设性质","实施地点","时间进度",null,"责任单位","建设内容及规模","资金规模和筹资方式",null,null,"受益对象",{"$nulls":5},"绩效目标","联农带农机制","备注"]
[null,"项目类型","二级项目类型","项目子类型",{"$nulls":5},"计划开工时间","计划完工时间",null,null,"项目预算总投资（万元）","其中",null,"受益村 数(个)","受益户 数(户 )","受益人口数（人）","其中"]
[{"$nulls":14},"财政资金（万元）","其他资金（万元）",{"$nulls":3},"受益脱 贫村数 (个)","受益脱贫户数及防止返贫监测对象户数(户)","受益脱贫人口数及防止返贫监测对象人口数(人)"]
[1,"乡村建设行动","农村基础设施","农村道路建设（通村、通户路）","黄盖镇","广坪村","黄盖镇广坪村机耕路维修","维修","双洲组、红旗组、广坪组、清水潭组",2025.3,2025.6,"广坪村","7000米",30,20,10,1,300,1320,0,6,19,"通过完成双洲组、红旗组、广坪组、清水潭组机耕路维修7000米，改善村民生产条件，为农作和出行提供便利。","改善广坪村村民生产生活条件，为出行和农作提供更多便利，提高致富创收热情。"]
[2,"乡村建设行动","农村基础设施","农村道路建设（通村、通户路）","黄盖镇","广坪村","黄盖镇广坪村沟渠清淤","维修","红旗组、双洲组、广坪组、新庄组、前进组、清水潭组",2025.4,2025.7,"广坪村","长8000米",35,25,10,1,405,1880,0,9,28,"完成红旗组、双洲组、广坪组、新庄组、前进组、清水潭组8000米沟渠清淤，增强农田排灌能力，改善水利条件，提高农业综合生产能力。","通过广坪村红旗组、双洲组、广坪组、新庄组、前进组、清水潭组沟渠清淤，改善农田引排功能、增强排灌能力及水利条件，提高农业综合生产能力，为农户增加收入，提高生活质量，助力乡村振兴"]
[3,"乡村建设行动","农村基础设施","农村道路建设（通村、通户路）","黄盖镇","合兴村","黄盖镇合兴村合兴组砂石路面维修","维修","黄盖镇合兴村",2025.5,2025.6,"合兴村","2600米",20,15,5,1,40,150,0,2,6,"完成黄盖镇合兴村合兴组砂石路面2600米维修，改善村民生产生活条件。","改善合兴组村民生产生活条件，为出行和农作提供更多便利，提高致富创收热情。"]
[4,"乡村建设行动","农村基础设施","农村道路建设（通村、通户路）","黄盖镇","黄盖湖村","黄盖镇黄盖湖村群英三组道白改黑","新建","群英三组",2025.6,2025.8,"黄盖湖村","长1500米",50,40,10,1,115,397,0,4,14,"完成群英三组组级道路1500米白改黑，改善村民生产生活条件。","改善群英三组村民生产生活条件，为出行和农作提供更多便利，提高致富创收热情。"]
[5,"乡村建设行动","农村基础设施","农村道路建设（通村、通户路）","黄盖镇","黄盖湖村","黄盖镇黄盖湖村横河组沟渠重建","新建","横河组",2025.2,2025.4,"黄盖湖村","长500米",20,16,4,1,88,306,0,4,13,"完成横河组沟渠重建500米，改善村民生产生活条件。","改善横河组村民生产生活条件，为出行和农作提供更多便利，提高致富创收热情。"]
[6,"乡村建设行动","农村基础设施","农村供水保障设施建设","黄盖镇","黄盖湖村","黄盖镇黄盖湖村虎山组高灌渠维修","维修","虎山组",2025.2,2025.4,"黄盖湖村","长450米",15,10,5,1,117,405,0,3,11,"完成虎山组高灌渠450米维修，增强渠道排灌能力，改善水利条件，提高农业综合生产能力。","通过虎山组高灌渠维修，增强农田引排功能、改善水利条件，提高农业综合生产能力，为农户增加收入，助力乡村振兴"]
[7,"乡村建设行动","农村基础设施","农村道路建设（通村、通户路）","黄盖镇","团山社区","团山社区道路硬化","新建","文卫路",2025.05,2025.06,"团山社区","长600米",20,13,7,1,100,350,0,2,3,"完成团山社区道路硬化600米，改善居民生产生活条件。","通过对文卫路道路进行硬化，能改善周边村民生产生活条件，为出行和农作提供更多便利，提高致富创收热情。"]
[8,"产业发展","生产项目","种植业基地","黄盖镇","/","黄盖镇高标准蔬菜育苗大棚建设 II期","新建","黄盖镇合兴村",2025.03,"2025.10","黄盖镇","通过对原黄盖镇博特利养殖场进行拆除改造，土壤重构9100m2，建设立体化蔬菜大棚9100m2，建设智能数字化系统1套，建设道路1000米，建设生产用房400m2，修缮及新建围墙250米，建设货物周转场地400m2，购置育苗大棚配套设施，带动群众发展产业。",580,580,0,4,20,57,0,10,30,"通过对原黄盖镇博特利养殖场进行拆除改造，土壤重构9100m2，建设立体化蔬菜大棚9100m2，建设智能数字化系统1套，建设道路1000米，建设生产用房400m2，修缮及新建围墙250米，建设货物周转场地400m2，购置育苗大棚配套设施，带动群众发展产业。","改善本地的农业基础设施，大力提高土地利用率，提升生产效益，促进生产发展。设施建成后能壮大种植业，提高农田复种指数，促进当地经济发展，带动周边20户农户就业，促进人均增收1000元以上。"]
[9,"就业项目","公益性岗位","公益性岗位","黄盖镇","/","黄盖镇公益岗位奖补","新建","黄盖镇",2025.1,2025.12,"黄盖镇","提供公益性岗位给脱贫户、监测户",4,3,1,4,5,12,0,5,12,"为脱贫户、监测户提供就业机会，稳定增收，减少返贫致贫风险。","提供就业机会，促进农户自主致富，提高经济收入。"]
[10,"产业发展","生产项目","水产养殖业发展","黄盖镇","/","黄盖镇庭院经济奖补","新建","黄盖镇",2025.1,2025.12,"黄盖镇","对积极发展种养殖业的脱贫户及监测户依照标准进行奖补",15,15,0,4,50,133,0,50,133,"对全镇发展产业的农户按标准进行奖补，提高农户种养殖热情，增加经济收入。","鼓励农户们进一步发展产业，解决在产业发展上的问题，达到收入增长的目的。"]
[11,"乡村建设行动","农村基础设施","产业路、资源路、旅游路建设","江南镇","丁坊村","江南镇丁坊村咀上组道路硬化","新建","丁坊村咀上组","2025-03-01","2025-04-01","丁坊村","咀上组道路硬化1.5千米",70,30,40,1,285,1120,1,6,17,"目标：道路硬化1.5千米","完善了丁坊村基础建设，改善村民交通运输条件，提高种养积极性，提高农民年收入100-200元。"]
[12,"乡村建设行动","农村基础设施","其他","江南镇","丁坊村","江南镇丁坊村山塘清淤","新建","丁坊村\n各组","2025-11-01","2025-12-01","丁坊村","山塘清淤\n10亩",10,6,4,1,246,1233,1,12,47,"目标：山塘清淤10亩","完善了丁坊村基础建设，改善村民灌溉条件，提高农作物产量，提高农民年收入200元。"]
[13,"乡村建设行动","农村基础设施","其他","江南镇","灯塔村","江南镇2025年灯塔村二级渠沟渠清淤。","维修","江南镇灯塔村","2025-06-01","2025-07-01","灯塔村","沟渠清淤2500米",10,10,0,1,412,2543,null,30,83,"目标：沟渠清淤2500米","方便村民耕种，增加种植产量，提高农民年收入100元。"]
[14,"产业发展","配套设施项目","小型农田水利设施建设","江南镇","东冶村","田乡水坝清淤、修建拦水闸","水利设施","东冶村田乡坝","2025-07-01","2025-12-01","东冶村","修建拦水闸1个，清淤85亩",15,12,3,1,226,1130,null,16,47,"目标1：修建蓝水闸1个；目标2：清淤85亩","加强生产建设，为产业发展提供条件，为农民增收100元/年。"]
[15,"乡村建设行动","农村基础设施","产业路、资源路、旅游路建设","江南镇","谷花社区","烈士陵园连接省道S208道路拓宽2米","维\n修","谷花社区","2025-05-01","2025-05-30","谷花社区","道路拓宽2米，长400米",10,5,5,1,1120,4550,1,27,79,"目标1：道路拓宽2米目标2：拓宽长度400米","为解决居民生产出行等问题，加强\n社区居民基础设施和生态环境建设，\n改善居民生产生活条件，促进经济\n发展，带动居民年收入增加100元。"]
[16,"乡村建设行动","农村基础设施","产业路、资源路、旅游路建设","江南镇","谷花社区","八组田间路连接省道S208道路维修","维\n修","谷花社区","2025-07-02","2025-07-30","谷花社区","道路维修200米",15,5,10,1,1120,4550,1,27,79,"目标：道路维修200米","为解决居民农副产品销售量及营销环境，增加居民与脱贫户收入，使居民、脱贫户年收入增加100元。"]
[17,"乡村建设行动","农村基础设施","产业路、资源路、旅游路建设","江南镇","谷花社区","十八组机耕桥建设","维\n修","谷花社区","2025-09-01","2025-09-30","谷花社区","机耕桥1座",5,3,2,1,1120,4550,1,27,79,"目标：维修机耕桥1座","为解决居民农副产品销售量及营销环境，增加居民与脱贫户收入，使居民、脱贫户年收入增加50元-100元。"]
[18,"乡村建设行动","农村基础设施","其他","江南镇","江南村","江南镇2江南村17、18组沟渠清淤。","维修","江南镇江南村","2025-02-01","2025-02-01","江南村","沟渠清淤2000米",4,2,2,1,126,856,null,8,25,"目标：沟渠清淤2500米","完善了丁坊村基础建设，改善村民灌溉条件，提高农作物产量，提高农民年收入200元。"]
[19,"乡村建设行动","农村基础设施","产业路、资源路、旅游路建设","江南镇","牛湖村","牛湖村2-5组道路维修","道路维修","牛湖村","2025/\n5/5","2025/\n7/5","牛湖村","道路建设1100米",11,8,3,1,160,950,null,4,9,"目标：道路维修1100米","为解决居民农产品运输、销售等问题，\n改善村民生产生活条件，促进经济\n发展，增加居民年收入100元。"]
[20,"乡村建设行动","农村基础设施","产业路、资源路、旅游路建设","江南镇","盛塘村","盛塘村二组桥修复","新建","盛塘村二组","2025-10-01","2025-11-01","盛塘村","盛塘村二组桥25米，,宽3.5米",12.5,8,4.5,1,105,589,1,5,8,"目标：修复桥梁1座","加强基础建设，方便群众出行及发展生产，增加群众年收入50元-100元。"]
[21,"乡村建设行动","农村基础设施","产业路、资源路、旅游路建设","江南镇","石岭村","江南镇石岭村主公路茶园组至廖家组段路面拓宽坑塘地段护坡砌墙建设","新建","江南镇石岭村","2025-04-01","2025-05-01","石岭村","路面拓宽硬化坑塘地段护坡砌墙2000米",98.5,50,48.5,1,200,1500,null,10,30,"目标：路面拓宽硬化坑塘地段护坡砌墙2000米","加强基础建设，方便群众出行及发展生产，增加群众年收入300元。"]
[22,"乡村建设行动","农村基础设施","产业路、资源路、旅游路建设","江南镇","新洲村","晓石公路拓宽","新建","新洲村","2025-04-01","2025-12-01","新洲村","2.2公里4.5米的道路扩宽至6米",52,36,16,2,660,3640,2,43,180,"目标1：道路拓宽1.5米；目标2：拓宽长度2.2公里","可解决两个村主要道路通行困难，促进区域近万亩稻虾套种、湘莲、水产等特色产业发展，提升当地经济水平，增加群众年收入200元。"]
[23,"乡村建设行动","农村基础设施","产业路、资源路、旅游路建设","江南镇","新洲村","晓洲片五组桥梁维修加宽","维\n修","新洲村","2025-04-01","2025-12-01","新洲村","原10米长、4米宽桥梁加宽至6.5米",10,5,5,2,660,3640,2,43,180,"目标1：拓宽桥梁2.5米；目标2：拓宽长度10米","可解决两个村主要道路通行困难，促进区域近万亩稻虾套种、湘莲、水产等特色产业发展，提升当地经济水平，增加群众年收入50元-100元。"]
[24,"乡村建设行动","农村基础设施","产业路、资源路、旅游路建设","江南镇","新洲村","晓洲片六组桥梁维修加宽","维\n修","新洲村","2025-04-01","2025-12-01","新洲村","原12米长、4米宽桥梁加宽至6.5米",11,6,5,2,660,3640,2,43,180,"目标1：拓宽桥梁2.5米；目标2：拓宽长度12米","可解决两个村主要道路通行困难，促进区域近万亩稻虾套种、湘莲、水产等特色产业发展，提升当地经济水平，增加群众年收入50元-100元。"]
[25,"乡村建设行动","农村基础设施","产业路、资源路、旅游路建设","江南镇","新洲村","晓洲片十一组至208道路维修","维\n修","新洲村","2025-04-01","2025-12-01","新洲村","原700米长、4.5米宽的破损路面维修",45,30,15,1,220,720,1,13,47,"目标1：修复破损路面长700米，目标2：修复破损路面宽4.5米","可改善附近群众农副产品销售量及生产生活条件，促进我村蔬菜种植规模和产值的增加，发展特色产业，为村民增加年收入200元。"]
[26,"乡村建设行动","农村基础设施","产业路、资源路、旅游路建设","江南镇","新洲村","新洲片四组至三组道路拓宽","维\n修","新洲村","2025-04-01","2025-12-01","新洲村","1.3公里4.5米的道路扩宽至6米",32,20,12,1,230,790,1,15,53,"目标1：道路拓宽1.5米；目标2：拓宽长度1.3公里","可解决两个村主要道路通行困难，促进区域近万亩稻虾套种、湘莲、水产等特色产业发展，提升当地经济水平，增加群众年收入100元-200元。"]
[27,"乡村建设行动","农村基础设施","产业路、资源路、旅游路建设","江南镇","鸭栏村","五组田间路连接省道S208道路维修","维\n修","鸭栏村","2025-10-01","2025-10-30","鸭栏村","道路维修500米",10,10,0,1,876,3896,1,10,72,"目标：道路维修500米","为解决村民生产出行等问题，加强\n村民基础设施和生态环境建设，\n改善村民生产生活条件，促进经济\n发展，增加村民年收入100元，"]
[28,"乡村建设行动","农村基础设施","产业路、资源路、旅游路建设","江南镇","鸭栏村","十二组至冶湖渍堤田间路","维\n修","鸭栏村","2025-11-02","2025-11-30","鸭栏村","水泥路硬化长975米，宽4米",40,35,5,1,876,3896,1,10,72,"目标1：硬化水泥路长975米；目标2：硬化水泥路4米","改善村民粮食生产环境，增加村民与脱贫户收入200元。"]
[29,"乡村建设行动","农村基础设施","产业路、资源路、旅游路建设","江南镇","洋溪","洋溪村方大屋组道路硬化","新建","洋溪村","2025/\n6/1","2025/\n7/1","洋溪村","方大屋组道路硬化1150米",30,10,20,1,10,35,3,3,1,"目标：道路硬化1150米","通过道路硬化，方便农户出行，有利于农户生产建设，增加农户年收入100元-200元"]
[30,"乡村建设行动","农村基础设施","产业路、资源路、旅游路建设","江南镇","长江村","长江村12、1、2、3组道路维修","新建","12、1、2、3组","2025/\n5/1","2024/\n12/1","长江村","道路维修1800米",10,8,2,1,550,2489,1,22,62,"目标：道路维修1800米","改善村民粮食生产环境，增加村民与脱贫户年收入100元。"]
[31,"乡村建设行动","农村基础设施","产业路、资源路、旅游路建设","江南镇","儒溪社区","儒溪一组机耕路","维修","儒溪社区","2025-03-01","2025-06-01","儒溪社区","机耕路维修1500米",8,5,3,1,40,161,0,0,0,"目标：机耕路维修1500米","带动农户，脱贫户、监测户发展产业，巩固脱贫成果，增加年收入100元。"]
[32,"乡村建设行动","农村基础设施","其他","江南镇","儒溪社区","新屋组山塘清淤","维修","儒溪社区","2025-09-01","2025-11-01","儒溪社区","山塘清淤1个塘,\n79920立方米",15,10,5,1,48,194,0,1,1,"目标：山塘清淤79920立方米","完善了丁坊村基础建设，改善村民灌溉条件，提高农作物产量，提高农民年收入200元。"]
[33,"乡村建设行动","农村基础设施","产业路、资源路、旅游路建设","江南镇","儒溪社区","儒溪社区断头路维修","维修","儒溪社区","2025-10-01","2025-12-02","儒溪社区","断头路维修70米",5.5,3,2.5,1,36,167,0,3,3,"目标：断头路维修70米","方便农户出行，有利于农户生产建设，增加农户年收入50元-100元"]
[34,"就业项目","公益性岗位","公益性岗位","江南镇","江南镇","江南镇公益性岗位2025","新建","江南镇","2025-01-01","2025-05-01","临湘市江南镇","脱贫户342户899人，监测户83户214人",30.4,18.4,12,13,379,1003,3,48,48,"为部分有劳力的脱贫户及监测户设岗增收","通过设立岗位激发脱贫对象劳动激情，增加收入"]
[35,"产业发展","生产项目","产业奖补","江南镇","江南镇","江南镇庭院经济产业奖补2025","新建","江南镇","2025-01-01","2025-05-01","临湘市江南镇","脱贫户342户899人，监测户83户214人",24,24,0,13,379,1003,3,225,775,"改善困难群众的生产生活，增加村民收入和带动村级集体经济事业发展。","通过产业奖补部分重点产业发展对象，激发各村（社区）群众发展生产和村（社区）发展集体产业的的积极性，同时也能改善困难群众的生产生活，增加村民收入和带动村级集体经济事业发展。"]
[36,"产业发展","生产项目","水产养殖业发展","长安街道","长安街道","长安街道2025年庭院经济发展项目","新建","5个村（社区）","2025.03.01","2025.07.01","长安街道","长安街道100户脱贫户及监测户发展庭院经济",8,6,2,5,100,266,1,100,266,"长安街道100户脱贫户及监测户发展庭院经济","通过发展庭院经济，帮助脱贫户及监测户提高经济收入，巩固脱贫成效。"]
[37,"就业项目","公益性岗位","公益性岗位","长安街道","长安街道","长安街道2025年公益性岗位","新建","5个村（社区）","2025.01.01","2025.12.30","长安街道","公益性岗位奖补人数26人",15.6,10.4,5.2,5,26,26,1,26,26,"公益性岗位奖补人数26人","通过公益性岗位，解决脱贫户及监测户就业问题，增加其收入。"]
[38,"乡村建设行动","农村基础设施","农村道路建设","长安街道","杨田村","杨田村立地组组级公路硬化","新建","杨田村立地组","2025.7.1","2025.8.1","杨田村","道路硬化（铺油）长350米，宽4米。",15,8,7,1,27,142,1,16,31,"道路硬化（铺油）长350米，宽4米。","改善立地组的群众生产生活条件，方便出行"]
[39,"乡村建设行动","农村基础设施","农村道路建设","长安街道","杨田村","杨田村罗家组组级公路硬化","新建","杨田村罗家组","2025.10.1","2025.10.31","杨田村","道路硬化（铺油）300米，宽4米。",12,7,5,1,28,128,1,16,31,"道路硬化（铺油）长300米，宽4米。","改善罗家组的群众生产生活条件，方便出行"]
[40,"乡村建设行动","农村基础设施","农村道路建设","长安街道","杨田村","杨田村新屋组公路硬化","新建","杨田村新屋组","2025.9.1","2025.9.30","杨田村","道路硬化（铺油）350米，宽4米。",15,8,7,1,26,115,1,16,31,"道路硬化（铺油）长350米，宽4米。","改善新屋组的群众生产生活条件，方便出行"]
[41,"乡村建设行动","农村基础设施","农村道路建设","长安街道","麻塘社区","麻塘社区丙祥组组级公路硬化","新建","麻塘社区丙祥组","2025.08.01","2025.10.01","麻塘社区","道路硬化长400米，宽3米",15,8,7,1,43,168,0,5,10,"道路硬化长400米，宽3米","改善丙祥组的群众生产生活条件，方便出行"]
[42,"产业发展","配套设施项目","小型农田水利设施项目","长安街道","集庄社区","长安街道集庄社区水渠建设","扩建","集庄社区",2025.3,2025.12,"集庄社区","渠道扩建1000米",20,15,5,1,40,190,0,2,8,"渠道扩建1000米","通过渠道扩建，，解决周边农田灌溉用水问题，有利于粮食增产，增加老百姓收入。"]
[43,"乡村建设行动","农村基础设施","农村道路建设","长安街道","荆竹山村","荆竹山村原灰山片区主公路维修硬化","新建","荆竹山村张家组至铁路涵洞",2025.6,2025.9,"荆竹山村","路面维修硬化（铺油）长2600米，宽4.5米。",80,50,30,1,240,1053,0,15,35,"路面维修硬化（铺油）长2600米，宽4.5米。","改善张、陈、坳上等8个组的群众生产生活条件，方便出行"]
[44,"产业发展","配套设施项目","小型农田水利设施建设","长安街道","麻塘社区","麻塘社区刘家组山塘清淤","新建","麻塘社区刘家组","2024.10.01","2024.10.30","麻塘社区","山塘清淤3800方",10,6,4,1,60,556,0,5,11,"山塘清淤3800方","通过山塘清淤，改善周边农田灌溉用水问题，利于粮食增产。"]
[45,"产业发展","配套设施项目","小型农田水利设施建设","长安街道","麻塘社区","麻塘社区周家组铁路塘清淤","新建","麻塘社区周家组","2024.11.01","2024.11.30","麻塘社区","山塘清淤2700方",8,6,2,1,23,168,0,2,8,"山塘清淤2700方","通过山塘清淤，改善周边农田灌溉用水问题，利于粮食增产。"]
[46,"产业发展","配套设施项目","小型农田水利设施建设","长安街道","荆竹山村","荆竹山村蔡家塘水库下游灌溉水渠詹家组段维修","新建","荆竹山村詹家组","2024.10.01","2024.11.01","荆竹山村","渠道清淤100方，硬化渠道内的底板及两边加固350米。",8,6,2,1,83,428,0,9,14,"渠道清淤100方，硬化渠道内的底板及两边加固350米。","通过渠道维修加固，保证周边农田灌溉用水问题，利于粮食增产，老百姓增收。"]
[47,"乡村建设行动","农村基础设施","农村道路建设","长安街道","杨田村","杨田村张沈组至曾家冲水库道路硬化","新建","张沈组、易家组","2024.09.30","2024.10.30","杨田村","张沈组至曾家冲水库防汛防火道路拓宽硬化500米",35,10,25,1,198,430,1,16,33,"解决村民出行难同时为防汛防火提供有利保障","改善村民出行及应急条件，降低农产品运输成本。"]
[48,"产业发展","配套设施项目","小型农田水利设施建设","聂市镇","乘风村","刘堡组抗旱机埠","新建","聂市镇乘风村","2025 年 2月","2025年 3月","乘风村","修建抗旱机埠1座，配备灌溉机械及管道设备一套，电路设备一套。",12.5,6,6.5,1,60,246,0,4,8,"加强基础建设，解决农业生产灌溉问题，减轻干旱季节灌溉压力，防止旱灾发生。该项目改良200亩农田灌溉条件，涉及农户60户，246人，脱贫户4户8人","带动农户、脱贫户展产业，为产业发展提供条件，巩固脱贫成果。"]
[49,"产业发展","生产项目","水产养殖发展","聂市镇","长源村","2025年长源村新长源垸水面生态养殖项目","新建","长源村新长源垸","2025年 3月","2025年 6月","长源村","特种养殖2600亩",35,15,20,1,918,3162,0,30,124,"巩固脱贫攻坚成果，发展壮大村集体经济。该项目涉及农户918户，3162人，脱贫户30户124人。","带动农户、脱贫户展产业，巩固脱贫成果。"]
[50,"产业发展","配套设施项目","小型农田水利设施建设","聂市镇","长源村","沟渠修复","新建","长源村各组","2025年 1月","2025年 11月","长源村","沟渠修复3000米",10,8,2,1,352,1288,0,15,34,"改善老百姓生产条件，提高老百姓收入，巩固脱贫攻坚成果。该项目涉及农户352户，1288人，脱贫户15户34人。","带动农户、脱贫户展产业，为产业发展提供条件，巩固脱贫成果。"]
[51,"乡村建设行动","农村基础设施","\n农村道路建设（通村路、通户路、小型桥梁等）\n","聂市镇","聂市镇凤形村","\n下前组河道驳岸，桥梁维修","新建","聂市镇凤形村","2024年 12月","2025年 12月","凤形村","\n下前组河道驳岸，桥梁维修",45,20,25,1,120,465,0,6,23,"河道驳岸工程可有效改善农田灌溉条件，方便群众出行及发展生产，稳固脱贫成效。该项目涉及农户120户465人，其中脱贫户6户23人","加强基础建设，为产业发展提供条件，巩固脱贫成果。"]
[52,"乡村建设行动","农村基础设施","\n农村道路建设（通村路、通户路、小型桥梁等）\n","聂市镇","聂市镇官田村","七屋组至石壁公路硬化","新建","聂市镇官田村",2025,2025,"官田村","公路硬化长560米、宽3.5米、厚0.2米",28,20,8,1,790,2980,1,64,184,"方便群众出行，改善农村产业发展条件增加农民收入，该项目涉及农户790户2980人，其中脱贫户64户184人。","加强基础建设，为产业发展提供条件，巩固脱贫成果。"]
[53,"乡村建设行动","农村基础设施","\n农村道路建设（通村路、通户路、小型桥梁等）\n","聂市镇","红士村","水毁公路驳岸","新建","红士村","2025年4月份","2025年6月份","红士村","水毁公路驳岸300立方",13.5,10,3.5,1,297,858,1,16,52,"水毁公路驳岸有效改善农户出行，发出产业。该项目涉及农户297户858人，其中脱贫户16户52人。","加强基础设施建设，为产业发展提供条件，巩固脱贫成果"]
[54,"乡村建设行动","农村基础设施","\n农村道路建设（通村路、通户路、小型桥梁等）\n","聂市镇","黄盖村","源潭河至彭畈港渠道清淤拓宽","新建","聂市镇黄盖村","2025年 1月","2025年 3月","黄盖村","清淤、拓宽渠道1200米，加固大堤230米",16,10,6,1,160,486,0,7,18,"加强基础建设，解决农业生产灌溉问题，减轻暴雨季节撇洪水流，防止水灾发生。该项目涉及农户160户486人，其中脱贫户7户18人。","带动农户、脱贫户展产业，巩固脱贫成果。"]
[55,"乡村建设行动","农村基础设施","\n农村道路建设（通村路、通户路、小型桥梁等）\n","聂市镇","三和村","打转至凤形公路拓宽","新建","三和村",2025.4,2025.9,"三和村","拓宽1米长3公里",80,60,20,1,320,1210,0,7,24,"方便脱贫劳动力和群众出行，方便群众发展生产，该项目涉及农户320户1210人，其中脱贫户7户24人","巩固脱贫攻坚成果，发展壮大村集体建设"]
[56,"产业发展","生产项目","水产养殖发展","聂市镇","聂市镇同德村","2025年同德垸水面生态养殖","新建","同德村同德垸","2025年 2月","2025年 3月","同德村","水面生态养殖项目，由村集体统一实行人放天养，养殖草鱼、白鲢、桂花鱼、鲫鱼等四大家鱼常规渔业养殖。",100,20,80,1,1213,5119,0,52,185,"巩固脱贫成效，壮大集体经济年收入约100万元，吸收脱贫劳动力就业，该项目涉及农户1213户5119人，其中脱贫户52户185人。","解决脱贫户及农户就业，壮大村集体经济。"]
[57,"乡村建设行动","农村基础设施","\n农村道路建设（通村路、通户路、小型桥梁等）\n","聂市镇","源潭社区","沿河街至粮站、庙湾巷提质改造","新建","聂市镇源潭社区","2025年 10月","2025年 11月","源潭社区","长685米",26.5,10,16.5,1,67,223,0,2,4,"加强基础建设，方便群众出行，为产业发展提供条件，增加群众收入。该项目涉及农户67户223人；其中脱贫户2户4人","带动农户、脱贫户展产业，巩固脱贫成果。"]
[58,"乡村建设行动","农村基础设施","\n农村道路建设（通村路、通户路、小型桥梁等）\n","聂市镇","马垅村","叶桥垸维修、改造","新建","马垅村叶桥垸","2025年1月1日","2025年4月31日","马垅村","叶桥垸南边、西边堤身维修加固，全长3000米",50,30,20,1,753,3164,1,40,123,"该项目涉及农户753户3164人；其中脱贫户40户123人；加强基础建设，减轻雨季季节防汛压力，防止水灾发生，保障人民群众生命财产安全。","加强基础建设，防止水灾发生，保障人民群众生命财产安全。"]
[59,"产业发展","生产项目","水产养殖发展","聂市镇","马垅村","2025年叶桥垸生态养殖","新建","马垅村叶桥垸","2025年1月","2025年5月","马垅村","叶桥垸800亩水面生态养殖",30,20,10,1,753,3614,1,40,123,"巩固脱贫成效，壮大集体经济，年收入约40万元，吸收脱贫劳动力就业，该项目涉及农户753户3164人，其中脱贫户40户123人。","壮大集体经济解决部分脱贫户及农户就业，壮大村集体经济。"]
[60,"乡村建设行动","农村基础设施","\n农村道路建设（通村路、通户路、小型桥梁等）\n","聂市镇","乘岭社区","元新屋组道路硬化","新建","乘岭社区","2025\n年1月","2025\n年12\n月","乘岭社区","元新屋通组公路硬化，长570米，宽3.5米。",24,20,4,1,44,139,0,3,7,"改善居民周边生活环境、方便居民出行及发展生产、提高居民生活质量。该项目涉及农户44户139人，其中脱贫户3户7人。","方便群众出行，带动附近居民产业发展，巩固脱贫成果。"]
[61,"产业发展","配套设施项目","小型农田水利设施建设","聂市镇","沿河社区","山墈组山塘整修","新建","山墈组","2025年 3月","2025年 5月","沿河社区","山塘整修，清淤4670平方，埋管34米",9,7,2,1,58,237,0,5,15,"该项目涉及农户58户237人；其中脱贫户5户15人；加强基础建设，为产业发展提供条件，增加群众收入。","带动农户、脱贫户发展产业，巩固脱贫成果。"]
[62,"产业发展","配套设施项目","小型农田水利设施建设","聂市镇","同合村","同合村天以组铁边山塘清淤、整修埋设涵管工程","新建","同合村天以组","2025年 1月","2025年 2月","同合村","同合村天以组铁边山塘清淤整修及埋设涵管",12,10,2,1,89,314,1,4,17,"山塘清淤整修及埋设涵管能有效解决3个组的稻田灌溉，提高贫困户增产增收。该项目涉及农户89户314人；其中脱贫户4户17人","带动农户及脱贫户稻田灌溉及增产增收。"]
[63,"产业发展","生产项目",null,"聂市镇",null,"2025年聂市镇产业奖补","新建","聂市镇","2025年","2025年","聂市镇","聂市镇产业奖补",60,60,null,17,629,1864,4,245,764,"全镇范围内实施产业奖补，受益脱贫户及监测户脱贫户629户1864人","全镇范围内实施产业奖补，支持鼓励产业发展，提高脱贫人口及监测户收入，巩固脱贫成果。"]
[64,"就业项目","公益性岗位","公益性岗位","聂市镇",null,"2025年聂市镇公益性岗位","新建","聂市镇","2025年","2025年","聂市镇","聂市镇公益性岗位",40,40,null,17,629,1864,4,245,764,"全镇范围内实施公益性岗位，受益脱贫户及监测户脱贫户632户1869人","全镇范围内实施公益性岗位，解决脱贫人口及监测户就业难问题，巩固脱贫成果。"]
[65,"乡村建设行动","农村基础设施","农村道路建设","白羊田镇","方山村","伍家组道路维修","改建","方山村伍家组","2025-03-01","2025-05-01","白羊田镇方山村","伍家组道路拓宽维修砌坎等100米",5.2,5,0.2,1,63,252,0,3,11,"完成伍家组道路拓宽维修硬化砌坎等100米，保障群众安全出行，激发群众发展生产的积极性，促进增收。","改善了生产生活条件，方便了村民出行，增强民众幸福感，激发群众发展生产的积极性。"]
[66,"乡村建设行动","农村基础设施","农村供水保障设施","白羊田镇","八百村","鸦嘴山高干渠一金盆组衬砌硬化","改建","八百村  金盆组 ","2025-03-02","2025-05-02","白羊田镇八百村","鸦嘴山高干渠至金盆组衬砌硬化。全长400米，高1米2，宽80公分",12,8,4,1,178,895,0,5,14,"完成鸦嘴山高干渠一金盆组衬砌硬化全长400米，为村民的出行和农作提供更多的便利。","改善村民生产生活条件，为老百姓种植农作提供更多便利，提高生活生产质量，推动乡村产业振兴。"]
[67,"乡村建设行动","农村基础设施","农村道路建设","白羊田镇","西山村","潘畈组至村部道路拓宽","改建","西山村潘畈组","2025-03-01","2025-12-01","白羊田镇西山村","潘畈组至村部道路拓宽400米",12,10,2,1,48,185,0,5,11,"完成潘畈组至村部道路拓宽400米，保障群众安全出行，激发群众发展生产的积极性，促进增收。","改善了生产生活条件，方便了村民出行，增强民众幸福感，激发群众发展生产的积极性。"]
[68,"乡村建设行动","农村基础设施","农村道路建设","白羊田镇","西山村","东沙公路至何山组至群建道路破损维修","改建","西山村潘畈组至群建","2025-03-01","2025-12-01","白羊田镇西山村","东沙公路至何山组至群建道路破损维修3000米",26,20,6,1,248,548,0,11,28,"完成东沙公路至何山组至群建道路破损维修3000米，保障群众安全出行，激发群众发展生产的积极性，促进增收。","改善了生产生活条件，方便了村民出行，增强民众幸福感，激发群众发展生产的积极性。"]
[69,"乡村建设行动","农村基础设施","农村供水保障设施","白羊田镇","西山村","安全饮水","改建","西山村西冲组","2025-03-01","2025-12-01","白羊田镇西山村","安全饮水",20,15,5,1,24,52,0,4,14,"完成安全饮水，保障群众安全饮水。","保障群众饮水安全，提高群众生活质量。"]
[70,"乡村建设行动","农村基础设施","农村道路建设","白羊田镇","双泉村","白羊田镇双泉村新屋组至左家组公路白改黑","改建","新屋组至左家组","2025-06-01","2025-09-01","双泉村","双泉村新屋组至左家组公路1.4公里白改黑",68.5,55,13.5,1,420,1260,1,12,28,"完成双泉村新屋组至左家组公路1.4公里白改黑，为村民的出行和农作提供更多的便利。","保障群众安全出行，激发群众发展生产的积极性，促进增收"]
[71,"乡村建设行动","农村基础设施","农村道路建设","白羊田镇","双泉村","白羊田镇双泉村老屋黎家至破湾组公路拓宽","改建","老屋黎家组至破湾组","2025-06-01","2025-09-01","双泉村","老屋黎家组至破湾组公路4.5公里拓宽至6米",338,158,180,1,560,1680,1,16,35,"完成双泉村老屋黎家组至破湾组公路4.5公里拓宽至6米，为村民的出行和农作提供更多的便利。","保障群众安全出行，激发群众发展生产的积极性，促进增收"]
[72,"产业发展","生产项目","种植业基地","白羊田镇","双泉村","双泉村油茶种植","新建","付陈组，左家组，老屋黎家组","2025-07-01","2025-11-01","双泉村","1200亩油茶种植",216,120,96,1,265,789,1,10,18,"完成油茶种植1200亩，带动脱贫户和监测户养植业，激发生产热情，进一步提升农户收入，巩固脱贫攻坚成果。","带动脱贫户和监测户发展养植业，激发生产热情，进一步提升农户收入，巩固脱贫攻坚成果。"]
[73,"乡村建设行动","农村基础设施","农村道路建设","白羊田镇","万利村","村主干道改道.修桥                                                  ","新建","万利村部至政府","2025.5.1","2025.12.31","万利村","800米长。宽10米",260,200,60,1,726,315,0,33,89,"完善基础设施，降低老百姓出行安全隐患，推进产业发展，提高集体经济收入","改善了生产生活条件，方便了村民出行，增强民众幸福感，激发群众发展生产的积极性。"]
[74,"乡村建设行动","农村基础设施","农村道路建设","白羊田镇","万利村","十组道路白改黑","改建","十组道路白改黑","2025.10.15","2025.10.20","万利村","长400米.宽4.5米",18,10,8,1,30,140,0,3,8,"完善基础设施，改善村民生产生活条件，提高生活质量，助力乡村振兴","改善了生产生活条件，方便了村民出行，增强民众幸福感，激发群众发展生产的积极性。"]
[75,"乡村建设行动","农村基础设施","农村道路建设","白羊田镇","万利村","长其屋至胡咀组新修机耕路","新建","长其屋至胡咀组新修机耕路","2025.9.10","2025.12.30","万利村","长700米.宽4米",25,13,12,1,200,700,0,11,33,"完善基础设施，降低老百姓出行和农作提供更多的便利","保障群众安全出行，激发群众发展生产的积极性，促进增收"]
[76,"就业项目","公益性岗位","公益性岗位","白羊田镇","各村社区","2025年白羊田镇公益岗位奖补","新建","白羊田镇","2025-01-01","2025-12-01","白羊田镇","奖补脱贫户、监测户公益性岗位",26,26,0,7,56,173,2,56,173,"帮助脱贫户、监测户就近就地就业，促进受益户稳定增收，防范返贫致贫风险。","提供就业机会，促进农户自主致富，提高经济收入。"]
[77,"产业发展","生产项目","养殖业基地","白羊田镇","各村社区","2025年白羊田镇产业奖补","新建","白羊田镇","2025-01-01","2025-12-01","白羊田镇","对有劳动能力，发展意愿的脱贫户、监测户依照标准直接进行奖补",30,30,0,7,230,647,2,230,647,"对全镇422户中符合有劳动能力，发展意愿条件的脱贫户、监测户依照标准直接进行奖补，提高农户种养殖热情，增加经济收入。","以发放奖补的形式鼓励农户们进一步发展产业，解决在产业发展上的问题，达到收入增长的目的。"]
[78,"乡村建设行动","农村基础设施","光伏发电","白羊田镇","合盘村","村级集体\n经济光伏\n发电项目","新建","合盘村","2025-01-01","2025-03-01","白羊田镇合盘村","光伏板面积1500平方",60,30,30,1,12,30,1,12,30,"推动光伏发电产业的发展，实现“板上发电、板下种养”的立体复合经济模式","促进农村经济发展，实现绿色能源的广泛应用，助力乡村振兴"]
[79,"乡村建设行动","农村基础设施","农村供水保障设施","白羊田镇","合盘村","饮用水源水库整修扩容项目","改建","合盘村","2025-01-01","2025-03-01","白羊田镇合盘村","堤坝加宽，扩容一万方",30,10,20,1,12,30,1,12,30,"提高水资源利用效率和供水能力、改善生态环境、保障人民群众安全饮水","保障群众饮水安全，增强村民身体体质，促进农业现代化和农民生产生活水平的提高"]
[80,"乡村建设行动","农村基础设施","产业路","坦渡镇","万峰村","高山、联合河道护坡","新建","高山组联合组","202503","202510","万峰村","长500米、宽0.8米、高2米",38,10,28,1,118,382,0,15,48,"消除道路安全隐患，带动群众及脱贫户的经济收入，提高生产生活质量","保护农田100多亩，使农田稳产增收，提高生产"]
[81,"乡村建设行动","农村基础设施","农村道路建设(通村、通户路)","坦渡镇","万峰村","梅冲组\n桥梁改造","改建","梅冲组","202503","202510","万峰村","长10米\n宽4.5米",15,10,5,1,102,336,0,15,48,"减少农户、脱贫户农产品运输成本，消除道路安全隐患","改善出行条件，减少运输成本，使群众增收500-800元。"]
[82,"产业发展","配套设施项目","小型农田水利设施建设","坦渡镇","农胜村","贺湾组山塘清淤","改建","贺湾组",202506,202507,"农胜村","清淤11000立方米",13,7,6,1,126,546,0,6,11,"完善基础设施，解决农户及脱贫户水田灌溉困难，增加脱贫户收入，提高经济效益。","改善水利条件，提高作物产量，使农户增收400-600元。"]
[83,"产业发展","配套设施项目","小型农田水利设施建设","坦渡镇","农胜村","瑶头组渠道硬化、整修","改建","瑶头组",202507,202508,"农胜村","整修硬化1200米",7,5,2,1,193,731,0,8,24,"完善基础设施，解决农户及脱贫户水田灌溉困难，增加脱贫户收入，提高经济效益。","改善水利条件，提高作物产量，使农户增收400-600元。"]
[84,"产业发展","配套设施项目","小型农田水利设施建设","坦渡镇","农胜村","干垅组渠道硬化、整修","改建","干垅组",202507,202508,"农胜村","整修硬化750米",6,4,2,1,126,546,0,6,11,"完善基础设施，解决农户及脱贫户水田灌溉困难，增加脱贫户收入，提高经济效益。","改善水利条件，提高作物产量，使农户增收400-600元。"]
[85,"产业发展","配套设施项目","小型农田水利设施建设","坦渡镇","农胜村","红旗组渠道硬化、整修","改建","红旗组",202508,202508,"农胜村","整修硬化600米",5,3,2,1,193,731,0,8,24,"完善基础设施，解决农户及脱贫户水田灌溉困难，增加脱贫户收入，提高经济效益。","改善水利条件，提高作物产量，使农户增收400-600元。"]
[86,"产业发展","配套设施项目","小型农田水利设施建设","坦渡镇","联合村","增垅组山塘清淤","改建","联合村增垅组","202501","202512","联合村","清淤9200立方米",18,12,6,1,92,394,1,8,23,"完善基础设施，改善农户生产生活条件，增加农户收入","脱贫户、农户增加收入500-800元"]
[87,"产业发展","配套设施项目","小型农田水利设施建设","坦渡镇","联合村","下沙组山塘清淤","改建","联合村下沙组","202501","202512","联合村","清淤7400立方米",14,9,5,1,68,316,1,5,14,"完善基础设施，改善农户生产生活条件，增加农户收入。","脱贫户、农户增加收入500-800元"]
[88,"产业发展","配套设施项目","小型农田水利设施建设","坦渡镇","红旗村","上螃垅组山塘整修、清淤","改建","上垅组",202508,202512,"红旗村","整修长90米、清淤4600方",8,5,3,1,46,142,0,6,17,"解决村民与脱贫户灌溉难问题，有效提高生产能力。","改善水利条件，提高作物产量，使农户增收400-600元。"]
[89,"乡村建设行动","农村基础设施","产业路","坦渡镇","红旗村","塘力组公路硬化","新建","塘力组",202506,202512,"红旗村","公路硬化长200米、宽3.5米",10,8,2,1,53,198,0,4,13,"解决村民与脱贫户出行难问题，有效提高经济效益。","改善出行条件，减少运输成本，是群众增收500-800元"]
[90,"乡村建设行动","农村基础设施","产业路","坦渡镇","长岭社区","长岭社区刘家垄组机耕路砂石扩宽","改建","长岭社区刘家垄组",202504,202505,"长岭社区","长600米、宽3.5米",4.4,3,1.4,1,139,1042,0,21,44,"完善基础设施，解决脱贫户和农户出行难的问题，减少农副产品销售的运输成本，从而巩固脱贫成果。","减少运输成本，方便出行，使脱贫户增收800元左右"]
[91,"产业发展","配套设施项目","小型农田水利设施建设","坦渡镇","长岭社区","长岭社区杨家庄组山塘清淤","改建","长岭社区杨家庄组",202509,202510,"长岭社区","3亩",6,5,1,1,37,162,0,21,44,"改建基础设施，有效改善脱贫户和居民水体质量，提升山塘的蓄水能力以及河道防洪排涝作用，从而巩固脱贫成果。","使脱贫户增收800元左右"]
[92,"乡村建设行动","农村基础设施","农村道路建设(通村、通户路)","坦渡镇","新湖村","张家咀公路硬化","新建","新湖村张家咀",202503,202504,"新湖村","张家咀公路硬化长300米、宽3.5米，厚0.2米",11,10,1,1,325,898,0,2,6,"完善基础设施，解决脱贫户和农户出行难的问题，减少农副产品销售的运输成本，从而巩固脱贫成果。","减少运输成本，方便出行，使脱贫户增收800元左右"]
[93,"乡村建设行动","农村基础设施","产业路","坦渡镇","定湖村","花红咀组机耕路铺砂石","改建","定湖村花红咀组",202504,202505,"定湖村","长2千米，宽3米，厚15公分",6.5,5,1.5,1,180,723,0,12,42,"1、解决农户出行难问题。2、减少运输成本，从而为脱贫户增收","使脱贫户增收800元以上"]
[94,"乡村建设行动","农村基础设施","产业路","坦渡镇","灯明村","谈家组机耕公路硬化","新建","灯明村谈家组",202504,202506,"灯明村","长400米，宽3.5米，厚20厘米。",18.9,10,8.9,1,182,748,0,8,27,"1、解决农户出行男问题。2、减少运输成本，从而为脱贫户增收","使脱贫户增收300-500元"]
[95,"产业发展","配套设施项目","小型农田水利设施建设","坦渡镇","灯明村","排灌渠硬化","改建","灯明村下屋组",202505,202508,"灯明村","硬化长1300米、底0.4米、开口面0.6米",18,10,8,1,45,218,0,5,14,"完善基础设施，解决脱贫户水田灌溉困难，增加脱贫户收入，提高经济效益。","改善水利条件，提高作物产量，使脱贫户增收300-500元"]
[96,"产业发展","配套设施项目","小型农田水利设施建设","坦渡镇","韩桥村","韩桥村各组水塘清淤及整修","改建","韩桥村",202504,202505,"韩桥村","清淤及整修4000立方",22,20,2,1,79,162,0,12,30,"改建基础设施，有效改善脱贫户和居民水体质量，提升山塘的蓄水能力以及河道防洪排涝作用，从而巩固脱贫成果。","使脱贫户增收800元左右"]
[97,"产业发展","配套设施项目","小型农田水利设施建设","坦渡镇","晓阳村","宋湾组山塘整修","改建","宋湾组",202507,202510,"晓阳村","清淤5500立方米",12,7,5,1,67,268,0,3,9,"完善基础设施，解决农户及脱贫户水田灌溉困难，增加脱贫户收入，提高经济效益。","改善水利条件，提高作物产量，使农户增收400-600元"]
[98,"乡村建设行动","农村基础设施","产业路","坦渡镇","晓阳村","宋湾组新桥路段道路拓宽硬化","新建","宋湾组",202503,202508,"晓阳村","公路拓宽硬化长620米，宽3米",25,10,15,1,130,678,0,10,25,"解决村民与脱贫户出行难问题，解决安全隐患，提搞产业发展效率","改善出行条件，减少运输成本，使群众增收500-800元"]
[99,"乡村建设行动","农村基础设施","农村道路建设","坦渡镇","大和村","大和水库至关山上坳组级道路硬化拓宽","改建","大和村",202502,202512,"大和村","长1.5公里，宽4.5米",70,50,20,1,100,370,1,25,40,"解决群众出行难问题","使脱贫户增收800元左右"]
[100,"乡村建设行动","农村基础设施","农村供水保障设施建设","坦渡镇","大和村","大和村白果组至下坳组供水工程","新建","大和村",202502,202512,"大和村","新建干管2条，新建支管5条，各类阀门井145座.护管驳岸18m；硬化路拆除恢复50m。",40,30,10,1,120,420,1,35,55,"解决大和村白果树、坳上、刘冲、高湾、大和岭、来冲、上坳、下坳共8个组的村民饮用水问题","使农户及脱贫户安全饮水得到保障"]
[101,"产业发展","配套设施项目","小型农田水利设施建设","坦渡镇","坦渡村","李庄组排灌渠道硬化","改建","坦渡村李庄组",202502,202505,"坦渡村","渠道硬化长600米、宽0.80米、高0.70米",21.751,15,6.751,1,143,105,0,10,28,"完善基础建设，解决脱贫户和农户水田灌溉困难，提高经济效益增收","改善水利条件，提高作物产量，为脱贫户和农户增收300-500元左右"]
[102,"产业发展","配套设施项目","小型农田水利设施建设","坦渡镇","桐梓铺社区","头龙山渠道护砌维修","新建","一组、二组、四组",202505,202511,"桐梓铺社区","长561米，宽0.4米，厚0.5米。",11.3,10,1.3,1,36,130,0,2,5,"完善基础设施，解决脱贫户水田灌溉困难，增加脱贫户收入，提高经济效益。","使脱贫户增收300-500元"]
[103,"产业发展","生产项目","农业社会化服务","坦渡镇",null,"坦渡镇庭院经济发展","新建","坦渡镇",20240101,20241230,"坦渡镇人民政府","脱贫户与监测户330户发展产业",20,20,0,13,330,660,3,330,660,"直接帮扶，提升脱贫户与监测户增加产业收入。","让每户监测户与脱贫户增加产业收入1000元以上，从而巩固脱贫成效。"]
[104,"就业项目","公益性岗位","公益性岗位","坦渡镇",null,"坦渡镇公益性岗位","新建","坦渡镇",20240101,20241230,"坦渡镇人民政府","42个公益性岗位补贴发放",16.8,16.8,0,13,42,42,3,12,40,"直接帮扶，提升脱贫户与监测户增加务工收入。","让参加公益性岗位的脱贫户和监测户务工收入增加4000元以上，从而巩固脱贫成效。"]
[105,"乡村建设行动","农村基础设施","下水道清淤及盖板","桃林镇","清泉社区","清泉社区杨家至马塘下水道清淤及盖板","改造","清泉社区杨家至马塘","2025-07-01","2025-08-01","清泉社区居委会","清泉社区杨家至马塘400米",{"v":15,"d":"15.00"},15,{"v":0,"d":"0.00"},1,76,264,1,6,17,"促进农业发展，提高生态环境保护水平，改善居民的生活环境。","改善人居环境，提升居民幸福感。"]
[106,"乡村建设行动","农村基础设施","农村道路建设","桃林镇","清泉社区","清泉社区杨一组公路拓宽硬化","改造","清泉社区杨家","2025-08-01","2025-09-01","清泉社区居委会","清泉社区杨一组公路拓宽硬化50米",{"v":5,"d":"5.00"},5,{"v":0,"d":"0.00"},1,30,126,1,6,17,"目标1：方便村民出行，目标2：促进乡村振兴的经济发展","方便村民出行，促进经济发展"]
[107,"乡村建设行动","农村基础设施","农村道路建设","桃林镇","清泉社区","清泉社区杨家二组机耕路硬化","改造","清泉社区杨家组","2025年10","2025年11","清泉社区居委会","清泉社区杨家机耕路硬化100米",{"v":9,"d":"9.00"},9,{"v":0,"d":"0.00"},1,30,126,1,6,17,"目标1：方便村民出行，目标2：促进乡村振兴的经济发展","方便村民出行，促进经济发展"]
[108,"产业发展","生产项目","种养殖业基地","桃林镇","桃林镇","桃林镇2025年发展庭院经济奖补","新建","桃林镇","2024-02-01","2024-04-01","桃林镇人民政府","辖区18个村相关监测户及脱贫户三有人员产业发展奖补",{"v":25,"d":"25.00"},25,{"v":0,"d":"0.00"},18,338,1007,18,338,1007,"目标1：帮助脱贫户及监测户发展产业； 目标2：带动产业发展，帮助脱贫户及监测户  创收。","帮助脱贫户及监测户发展产业带动产业发展，帮助脱贫户及监测户创收。"]
[109,"就业项目","公益性岗位","公益性岗位","桃林镇","桃林镇","桃林镇2025年公益性岗位","新建","桃林镇","2025-01-01","2025-12-01","桃林镇人民政府","辖区18个村社区60个公益性岗位",{"v":36,"d":"36.00"},36,{"v":0,"d":"0.00"},18,60,240,18,60,240,"目标1：帮助桃林镇辖区脱贫户及监测户解决就业； 目标2：巩固脱贫攻坚同乡村振兴有效衔接","帮助桃林镇辖区脱贫户及监测户解决就业；巩固脱贫攻坚同乡村振兴有效衔接"]
[110,"乡村建设行动","农村基础设施","产业路","桃林镇","大畈村","大畈村机耕路拓宽及硬化","提质","大畈村石山至大畈村","2025-03-01","2025-05-01","大畈村村委会","长约500米，拓宽宽至3.5米，及硬化",{"v":10,"d":"10.00"},8,{"v":2,"d":"2.00"},1,116,522,1,6,15,"减少农业机械作业时进出农田的时间和成本，提高农业生产效率，降低农业生产成本；提高农业生产效率，使村民们增产增收。","提高农业生产效率，促进农业机械发展，使村民增产增收，改善了村民耕种条件。"]
[111,"产业发展","配套设施项目","小型农田水利设施建设","桃林镇","大畈村","大畈村坡里组堰坝维修","维修","大畈村坡里组","2025-03-01","2025-05-01","大畈村村委会","堰坝维修",{"v":4,"d":"4.00"},3,{"v":1,"d":"1.00"},1,74,342,1,1,2,"解决附近村民们的生活生产及农田灌溉问题，提高了灌溉利用率，增加了农作物产量致使村民们增产增收。","解决了村民们的农田耕种时的灌溉问题，提高了村民们的耕种条件。"]
[112,"乡村建设行动","农村基础设施","农村道路建设","桃林镇","大畈村","大畈村对门组至刘家组村级公路硬化","提质","大畈村对门组至刘家组","2025-06-01","2025-08-01","大畈村委会","全长600多米",{"v":13,"d":"13.00"},10,{"v":3,"d":"3.00"},1,93,419,1,4,6,"改善交通条件，提高了行车安全性，改善了环境质量和村容村貌，方便村民出行，促进经济发展。","提高了运输效率，提高了村民生活水痘，确保了安全出行环境。"]
[113,"产业发展","配套设施项目","小型农田水利设施建设","桃林镇","大畈村","大畈村西头至游港河杭瑞桥下新修水渠","新建","大畈村西头组至游港河","2025-10-01","2025-12-01","大畈村村委会","全长500多米",{"v":5,"d":"5.00"},4,{"v":1,"d":"1.00"},1,78,357,1,5,17,"解决附近村民们的生活生产及农田灌溉问题，提高了灌溉利用率，增加了农作物产量致使村民们增产增收。","解决了村民们的农田耕种时的灌溉问题，提高了村民们的耕种条件。"]
[114,"产业发展","生产项目","种植园基地","桃林镇","苎麻社区","福寿山2025年度200亩茶园补苗及抚育","新栽","苎麻社区福寿山","2025-03-01","2025-04-01","苎麻社区","福寿山200亩茶园补苗及抚育",{"v":15,"d":"15.00"},15,{"v":0,"d":"0.00"},1,342,1400,1,16,43,"1、发展集体经济2、增加脱贫户及居民收入，提高居民生活幸福指数。","可提供部分居民及脱贫户的就业机会"]
[115,"产业发展","配套设施项目","产业园","桃林镇","苎麻社区","苎麻社区福寿山茶园驳岸建设工程","新建","苎麻社区福寿山","2025-02-01","2025-03-01","苎麻社区","100米驳岸护砌",{"v":8,"d":"8.00"},8,{"v":0,"d":"0.00"},1,342,1400,1,16,43,"1、发展集体经济2、增加脱贫户及居民收入，提高居民生活幸福指数。","可提供部分居民及脱贫户的就业机会"]
[116,"产业发展","配套设施项目","小型农田水利设施建设","桃林镇","苎麻社区","苎麻社区连山组堰坝水毁维修工程","改造","苎麻社区连山组","2025-03-01","2025-03-01","苎麻社区","10米长堰坝驳岸护砌",{"v":2,"d":"2.00"},2,{"v":0,"d":"0.00"},1,342,1400,1,16,43,"1、发展集体经济2、增加脱贫户及居民收入，提高居民生活幸福指数。","为居民水田灌溉提供基础便利"]
[117,"乡村建设行动","农村基础设施","产业路建设","桃林镇","苎麻社区","福寿山产业路石洞水库路段道路硬化","新建","苎麻社区福寿山","2025-04-01","2025-04-01","苎麻社区","福寿山产业路石洞水库路段1000米道路硬化（包含石洞水库堤坝硬化）",{"v":40,"d":"40.00"},40,{"v":0,"d":"0.00"},1,342,1400,1,16,43,"1、发展集体经济2、增加脱贫户及居民收入，提高居民生活幸福指数。","可提供部分居民及脱贫户的就业机会，为社区居民休闲旅游提供便利"]
[118,"产业发展","生产项目","种植业","桃林镇","旧李村","旧李村朱古冲油茶林抚育","维护","旧李村朱古冲","2025-05-01","2025-07-01","旧李村村委会","抚育100亩",{"v":5.3,"d":"5.30"},4,{"v":1.3,"d":"1.30"},1,596,2530,1,33,116,"目标1：可使茶园增加产量，从而增加村集体经济收入，目标2：能为群众或脱贫户提供就近就业机会，使脱贫户每年增加收入，进一步巩固脱贫成效。","解决脱贫户的就业率，便他们增加收入，巩固脱贫成果，促进经济发展。"]
[119,"产业发展","配套设施项目","小型农田水利设施建设","桃林镇","旧李村","旧李村敖家组张家冲水库维修","维修","旧李村敖家组","2025-02-01","2025-03-01","旧李村村委会","清淤及堤坝加固",{"v":5.2,"d":"5.20"},4,{"v":1.2,"d":"1.20"},1,81,321,1,3,11,"解决附近村民们的生活生产及农田灌溉问题，提高了灌溉利用率，增加了农作物产量致使村民们增产增收。","解决了村民们的农田耕种时的灌溉问题，提高了村民们的耕种条件。"]
[120,"乡村建设行动","农村基础设施","通村组道路","桃林镇","治水村","治水村大屋郑家公路护坡驳岸","维修","治水村大屋郑家","2025-05-01","2025-07-01","治水村村委会","长50米，高4米",{"v":9,"d":"9.00"},6,{"v":3,"d":"3.00"},1,108,516,1,4,9,"为村民们的生活、生产提供便利，改善农村交通条件和环境卫生，方便村民出行，消除安全隐患，减少交通事故，提高村民收入，促进农村经济发展。","改善村容村貌，提供生活、生产便利，改善交通条件，减少交通事故，促进经济发展。"]
[121,"产业发展","配套设施项目","小型农田水利设施建设","桃林镇","治水村","治水村立坪土冲山塘维修","维修","治水村汪家片","2025-03-01","2025-05-01","治水村村委","清淤、护坡、3方衬砌",{"v":12,"d":"12.00"},8,{"v":4,"d":"4.00"},1,40,178,1,5,12,"解决附近村民们的生活生产及农田灌溉问题，提高了灌溉利用率，增加了农作物产量致使村民们增产增收。","解决了村民们的农田耕种时的灌溉问题，提高了村民们的耕种条件。"]
[122,"乡村建设行动","农村基础设施","通村组道路","桃林镇","白石村","白石村赵泥组河道维修","维修","白石村赵泥组","2025-09-01","2025-12-01","白石村村委会","长1公里，清淤清运，河墈护砌",{"v":15,"d":"15.00"},10,{"v":5,"d":"5.00"},1,93,309,1,8,30,"解决附近村民们的生活生产及农田灌溉问题，提高了灌溉利用率，增加了农作物产量致使村民们增产增收。","解决了村民们的农田耕种时的灌溉问题，提高了村民们的耕种条件。"]
[123,"产业发展","配套设施项目","小型农田水利设施建设","桃林镇","白石村","白石村肖家组山塘整险","维修","白是村肖家组","2025-03-01","2025-05-01","白石村村委会","清淤，埋管，筑堤20米",{"v":8,"d":"8.00"},6,{"v":2,"d":"2.00"},1,91,304,1,4,11,"解决附近村民们的生活生产及农田灌溉问题，提高了灌溉利用率，增加了农作物产量致使村民们增产增收。","解决了村民们的农田耕种时的灌溉问题，提高了村民们的耕种条件。"]
[124,"产业发展","配套设施项目","小型农田水利设施建设","桃林镇","源冲村","源冲村方家水库整修","维修","源冲村方家组","2025-03-01","2025-05-01","源冲村村委会","将水库的堤坝、管道、次口等维修",{"v":4,"d":"4.00"},3,{"v":1,"d":"1.00"},1,118,458,1,4,10,"解决附近村民们的生活生产及农田灌溉问题，提高了灌溉利用率，增加了农作物产量致使村民们增产增收。","解决了村民们的农田耕种时的灌溉问题，提高了村民们的耕种条件。"]
[125,"产业发展","配套设施项目","小型农田水利设施建设","桃林镇","源冲村","源冲村花果园水库放水圳清淤及硬化","维修","源冲村花果园","2025-05-01","2025-07-01","源冲村村委会","放水圳清淤及硬化",{"v":4,"d":"4.00"},3,{"v":1,"d":"1.00"},1,136,562,1,7,24,"解决附近村民们的生活生产及农田灌溉问题，提高了灌溉利用率，增加了农作物产量致使村民们增产增收。","解决了村民们的农田耕种时的灌溉问题，提高了村民们的耕种条件。"]
[126,"产业发展","配套设施项目","小型农田水利设施建设","桃林镇","金盆村","金盆村胥家山塘维修","维修","金盆村胥家片","2025-03-01","2025-05-01","金盆村村委会","全塘整修",{"v":6,"d":"6.00"},5,{"v":1,"d":"1.00"},1,108,436,1,2,5,"解决附近村民们的生活生产及农田灌溉问题，提高了灌溉利用率，增加了农作物产量致使村民们增产增收。","解决了村民们的农田耕种时的灌溉问题，提高了村民们的耕种条件。"]
[127,"产业发展","配套设施项目","小型农田水利设施建设","桃林镇","金盆村","金盆村汪家片水渠维修","维修","金盆村汪家片","2025-05-01","2025-07-01","金盆村村委会","长约300米，清淤，硬化",{"v":5,"d":"5.00"},4,{"v":1,"d":"1.00"},1,198,792,1,3,7,"解决附近村民们的生活生产及农田灌溉问题，提高了灌溉利用率，增加了农作物产量致使村民们增产增收。","解决了村民们的农田耕种时的灌溉问题，提高了村民们的耕种条件。"]
[128,"乡村建设行动","农村基础设施","通村组道路","桃林镇","钟杨村","钟杨村罗石组公路硬化","新建","钟杨村罗石组","2025-05-01","2025-07-01","钟杨村村委会","长约350米宽3.5米硬化",{"v":12,"d":"12.00"},8,{"v":4,"d":"4.00"},1,87,393,1,5,13,"为村民们的生活、生产提供便利，改善农村交通条件和环境卫生，方便村民出行，消除安全隐患，减少交通事故，提高村民收入，促进农村经济发展。","改善村容村貌，提供生活、生产便利，改善交通条件，减少交通事故，促进经济发展。"]
[129,"乡村建设行动","农村基础设施"," 公路拓宽","桃林镇","中畈村","中畈村梅三组公路拓宽","拓宽驳堪","中畈村","2025-04-01","2025-04-01","中畈村村委会","梅三组村部下面200米道路拓宽维修驳堪",{"v":10,"d":"10.00"},10,{"v":0,"d":"0.00"},1,520,2274,0,9,30,"1、发展集体经济2、增加脱贫户及居民收入，提高居民生活幸福指数。","可提供部分居民及脱贫户的就业机会，为村民休闲旅游提供便利"]
[130,"产业发展","配套设施项目","小型农田水利设施建设","桃林镇","坪上村","坪上村君王组对门冲山塘维修","维修","坪上村君王组","2025-10-01","2025-11-01","坪上村村委会","君王组对门冲山塘维修（涵管、护坡、清淤）",{"v":28,"d":"28.00"},28,{"v":0,"d":"0.00"},1,342,1400,1,12,34,"1、发展集体经济2、增加脱贫户及居民收入，提高居民生活幸福指数。","为居民水田灌溉提供基础便利"]
[131,"产业发展","配套设施项目","小型农田水利设施建设","桃林镇","坪上村","坪上村咀上组新垅塘山塘修清淤","维修","坪上村咀上组","2025-10-01","2025-11-01","坪上村村委会","咀上组新垅塘山塘修清淤（（涵管、护坡、清淤））",{"v":12,"d":"12.00"},12,{"v":0,"d":"0.00"},1,342,1400,1,12,34,"1、发展集体经济2、增加脱贫户及居民收入，提高居民生活幸福指数。","为居民水田灌溉提供基础便利"]
[132,"产业发展","配套设施项目","小型农田水利设施建设","桃林镇","月山村","月山村欧阳大张片河道维修","维修","月山村","2025-10-01","2025-11-01","月山村村委会","维修及清淤2000米",{"v":8,"d":"8.00"},8,{"v":0,"d":"0.00"},1,398,2001,null,8,23,"1、发展集体经济2、增加脱贫户及居民收入，提高居民生活幸福指数。","为居民水田灌溉提供基础便利"]
[133,"乡村建设行动","农村基础设施","产业路建设","桃林镇","月山村","月山村村级公路拓宽","改建","月山村","2025-05-01","2025-06-01","月山村村委会","月山村村级公路拓宽长1公里，宽1.5米",{"v":20,"d":"20.00"},20,{"v":0,"d":"0.00"},1,875,4320,0,10,27,"1、发展集体经济2、增加脱贫户及居民收入，提高居民生活幸福指数。","可提供部分居民及脱贫户的就业机会，方便村民出行"]
[134,"产业发展","配套设施项目","小型农村水利建设","桃林镇","坪头村","坪头村新屋组王家坡机耕路和水库维修","改建","坪头村新屋组","2025-03-01","2025-04-01","坪头村村委会","长10米，宽1.5米",{"v":5,"d":"5.00"},5,{"v":0,"d":"0.00"},1,33,147,0,3,6,"目标1：促进农业发展，目标2:改善水利设施目标3：提高村民收入","目标1：促进农业发展，目标2:改善水利设施目标3：提高村民收入"]
[135,"产业发展","配套设施项目","小型农村水利建设","桃林镇","坪头村","坪头村泥头组陈家冲水库整险","改建","坪头村泥头组","2024-09-01","2024-10-01","坪头村村委会","长47米宽5米，高15米",{"v":8,"d":"8.00"},7,{"v":1,"d":"1.00"},1,19,87,0,1,2,"促进农业发展，改善水利设施，改善居民的生活环境","促进农业发展，改善水利设施，改善居民的生活环境"]
[136,"产业发展","配套设施项目","产业路建设","桃林镇","骆坪村","骆坪村杜家组新建产业路","新建","骆坪村杜家组","2025-03-01","2025-05-01","骆坪村村委会","杜家组新建产业路长约190m",7.68,6,1.68,1,210,785,1,5,14,"目标1：促进村民经济发展，提高经济效益。2.助力乡村振兴，搞好新农村建设","帮助脱贫户籍监测户发展生产，促进增收"]
[137,"产业发展","配套设施项目","小型农田水利设施建设","桃林镇","三合村","三合村竹塘组农田整修及新建机耕路","维修","三合村竹塘组","2025-10-01","2025-11-01","三合村村委会","新建机耕路8m（降坡），埋铺8031水管15m，平整清基农田50亩",{"v":3,"d":"3.00"},2,{"v":1,"d":"1.00"},1,32,144,1,1,4,"减少农业机械作业时进出农田的时间和成本，提高农业生产效率，降低农业生产成本；提高农业生产效率，增加村民耕种积极性，使村民们增产增收。","提高农业生产效率，促进农业机械发展，使村民增产增收，改善了村民耕种条件。"]
[138,"产业发展","配套设施项目","小型农田水利设施建设","桃林镇","三合村","三合村包王组新建农田取水井","新建","三合村包王组","2025-10-01","2025-11-01","三合村村委会","95亩农田新建取水井4口（9m*1.2m",{"v":5,"d":"5.00"},4,{"v":1,"d":"1.00"},1,70,315,1,2,7,"解决附近村民们的生产及农田灌溉问题，提高了灌溉利用率，增加了农作物产量致使村民们增产增收。","解决了村民们的农田耕种时的灌溉问题，提高了村民们的耕种条件。"]
[139,"产业发展","配套设施项目","小型农田水利设施建设","桃林镇","三合村","三合村简李组山塘维修","维修","三合村简李组","2025-10-01","2025-11-01","三合村村委会","山塘塘体高压帷幕灌浆",{"v":7,"d":"7.00"},5,{"v":2,"d":"2.00"},1,30,138,1,0,0,"解决附近村民们的生产及农田灌溉问题，提高了灌溉利用率，增加了农作物产量致使村民们增产增收。","解决了村民们的农田耕种时的灌溉问题，提高了村民们的耕种条件。"]
[140,"产业发展","配套设施项目","小型农田水利设施建设","桃林镇","三合村","三合村端次组新建简易灌渠200米及四口水塘整修","维修","三合村端次组","2025-10-01","2025-11-01","三合村村委会","30亩配套四口水塘（清基扫障、塘底泥石加固，农田平整，新建简易灌渠200米",{"v":7,"d":"7.00"},5,{"v":2,"d":"2.00"},1,8,37,1,0,0,"解决附近村民们的生产及农田灌溉问题，提高了灌溉利用率，增加了农作物产量致使村民们增产增收。","解决了村民们的农田耕种时的灌溉问题，提高了村民们的耕种条件。"]
[141,"乡村建设行动","农村基础设施","通村组道路","桃林镇","东湖村","东湖村巴陵组至兰桥段公路硬化","新建","东湖村巴陵组","2025-05-01","2025-07-01","东湖村村委会","长200米，宽3.5米",{"v":8,"d":"8.00"},6,{"v":2,"d":"2.00"},1,78,291,1,5,21,"为村民们的生活、生产提供便利，改善农村交通条件和环境卫生，方便村民出行，消除安全隐患，减少交通事故，提高村民收入，促进农村经济发展。","改善村容村貌，提供生活、生产便利，改善交通条件，减少交通事故，促进经济发展。"]
[142,"产业发展","配套设施项目","小型农田水利设施建设","桃林镇","东湖村","东湖村杨家冲水库至周家冲水库管道连接引水渠维修","维修","东湖村杨家冲至周家冲","2025-02-01","2025-04-01","东湖村村委会","全长1200米",{"v":15,"d":"15.00"},10,{"v":5,"d":"5.00"},1,78,291,1,5,21,"解决附近村民们的生活生产及农田灌溉问题，提高了灌溉利用率，增加了农作物产量致使村民们增产增收。","解决了村民们的农田耕种时的灌溉问题，提高了村民们的耕种条件。"]
[143,"产业发展","配套设施项目","小型农田水利设施建设","桃林镇","横铺村","横铺村上畈至金山河港驳坎","新建","横铺村上畈组至金山组","2025-05-01","2025-07-01","横铺村村委会","长100米，高3米",{"v":9.5,"d":"9.50"},6,{"v":3.5,"d":"3.50"},1,116,532,1,5,14,"解决附近村民们的生活生产及农田灌溉问题，提高了灌溉利用率，增加了农作物产量致使村民们增产增收。","解决了村民们的农田耕种时的灌溉问题，提高了村民们的耕种条件。"]
[144,"产业发展","配套设施项目","小型农田水利设施建设","桃林镇","横铺村","横铺村过水塘维修","维修","横铺村葛家组","2025-02-01","2025-03-01","横铺村村委会","清淤、塘管更换、加固",{"v":5,"d":"5.00"},4,{"v":1,"d":"1.00"},1,103,398,1,2,6,"解决附近村民们的生活生产及农田灌溉问题，提高了灌溉利用率，增加了农作物产量致使村民们增产增收。","解决了村民们的农田耕种时的灌溉问题，提高了村民们的耕种条件。"]
[145,"产业发展","生产项目","农村产业发展","五里牌街道","五里牌街道","庭院经济","新建","五里牌街道","2025.01","2025.12",null,"对在家发展种养业的245户脱贫户及监测户进行奖补",40,40,null,10,247,650,10,247,670,"鼓励全街道脱贫户和监测户通过发展种养业，提高收入。","此项目以生产物资或现金奖励的形式，鼓励全街道脱贫户和监测户通过发展种养业，提高经济收入，降低贫困发生率0.5%。"]
[146,"就业项目","公益性岗位","公益岗位","五里牌街道","五里牌街道","公益岗位","新建","五里牌街道","2025.01","2025.12","五里牌街道","公益岗位",30,30,null,10,247,650,10,50,50,"符合条件的脱贫户和监测户全覆盖。","加快推进巩固脱贫成果与乡村振兴战略的有效衔接，改善农村人居环境，稳定脱贫户及监测户家庭经济收入。"]
[147,"乡村建设行动","农村基础设施","配套基础设施","五里牌街道","松峰村","安全饮水","基础设施","周家、张家、小垅、井泉、彭冲、杨梅、新屋、宋坳、安坡、序阳、兴源、新冲、豪主、宴屋、旭林、戴家、","2025.01.01","2025.12.31","松峰村","16个村民小组",130,20,110,1,903,4500,1,24,60,"此项目实施后可保证903户居民的安全饮水","此项目实施后可保证903居民的安全饮水，提高居民生活质量，达到居民满意度，提高居民的幸福指数。"]
[148,"乡村建设行动","农村基础设施","配套基础设施","五里牌街道","松峰村","公路硬化及拓宽","基础设施","松峰村","2025.01.01","2025.12.31","松峰村","公路维修5公里",180,20,160,1,903,4500,1,24,60,"方便居民平安出行","改善居民生活质量、提高居民生活水平。"]
[149,"产业发展","生产项目","种植业基地","五里牌街道","松峰村","金盆柚种植","产业发展","松峰村小垅组","2025.01.01","2025.12.31","松峰村","60亩",30,20,10,0,903,4500,1,24,60,"此项目实施后可为我村集体经济增收，经济我村经济问题。","经济部分脱贫户和监测户就业问题，提高居民经济收入。"]
[150,"乡村建设行动","农村基础设施","配套基础设施","五里牌街道","新球社区","山塘整修","基础建设","新球社区","2025.10","2025.10","新球社区","约6000立方清淤沟渠疏浚",12,10,2,1,3,9,1,3,9,"解决农田灌溉","改善村民灌溉用水，保障村民耕种生产。"]
[151,"乡村建设行动","农村基础设施","配套基础设施","五里牌街道","新球社区","沟渠整修","基础建设","新球社区","2025.9","2025.9","新球社区","沟渠硬化600米",10,8,2,1,4,14,1,4,14,"此项目实施后可保证居民的农田能够及时得到灌溉","此项目实施后可保证居民农田能够及时得到灌溉，市农民增产收，提高居民生活质量，达到居民满意度"]
[152,"乡村建设行动","农村基础设施","配套基础设施","五里牌街道","新球社区","道路拓宽","基础建设","新球社区","2025.9","2025.10","新球社区","公路拓宽1000米",20,15,5,1,2,4,1,2,4,"此路改建好之后可以提高农民的出行质量。","此路改建好之后可以提高农民的出行质量，达到农民平安出行的满意度，使农民家中的农产品外出销售，从而提高农民收入。"]
[153,"乡村建设行动","农村基础设施","配套基础建设","五里牌街道","许畈村","公路维修","维修","蔡家组、棋盘组","2024.3.15","2024.3.31","许畈村","公路维修800米",16,4,12,1,189,657,1,7,28,"此项目实施后可提高村民出行质量","可提高附近189户，657名村民的出行质量，提升村民平安出行满意度"]
[154,"乡村建设行动","农村基础设施","配套基础建设","五里牌街道","许畈村","山塘整修","改建","百六组","2024.9","2024.10","许畈村","清淤、加固堤坝及管道更新",6,3,3,1,194,758,1,5,21,"解决农田灌溉","改善村民灌溉用水，保障村民耕种生产。"]
[155,"乡村建设行动","农村基础设施","配套基础建设","五里牌街道","火炬村","公路硬化",null,"车平组、姚佰组","2025.04.10","2025.04.30","火炬村","公路拓宽200米",12,10,2,1,67,275,1,6,10,"此项目实施后可保证67户275人的平安出行","此项目实施后可保证67户275人的安全出行，提高居民生活质量，达到居民满意度，提高居民的幸福指数。"]
[156,"乡村建设行动","农村基础设施","配套基础设施","五里牌街道","花桥村","组级公路拓宽及硬化","改拓建","花桥村花桥组","2025.02.03","2025.02.20","花桥村","公路拓宽至4米、硬化920平方米（20公分厚）",12,6,6,1,50,230,1,1,5,"方便村民安全出行","改善村民生活质量、提高村民生活水平。"]
[157,"乡村建设行动","农村基础设施","配套基础设施","五里牌街道","花桥村","安全饮水","新建","万家组、麻坪组","2025.1.2","2025.3.10","花桥村","新建一个36立方米的蓄水、饮水池，铺埋安装供给水水管3500米",32,20,12,1,48,215,1,3,8,"解决村民安全饮水问题","此项目实施后可保证48户215人的安全饮水问题，提高村民的生活质量及幸福指数。"]
[158,"乡村建设行动","农村基础设施","配套基础设施","五里牌街道","花桥村","山塘整修","改建","三曲组","2025.10.5","2025.10.30","花桥村","清淤、挡土墙、排水管道、溢洪道整改",8,4,4,1,35,145,1,3,5,"解决村民农田灌溉","山塘通过整治整改解决35户145人的粮食生产用水"]
[159,"乡村建设行动","农村基础设施","配套基础建设","五里牌街道","楠木村","山塘整修","改建","长春组、张冲组","2026.06.01","2025.12.30","楠木村","山塘清淤、加固修善塘堤",15,12,3,1,76,192,1,6,15,"解决农田灌溉","改善村民灌溉用水、保障村民耕种生产"]
[160,"乡村建设行动","农村基础设施","配套基础建设","五里牌街道","楠木村","山塘整修","改建","兑水组","2026.06.01","2025.12.30","楠木村","山塘清淤、加固修善塘堤",15,12,3,1,31,188,1,2,7,"解决农田灌溉","改善村民灌溉用水、保障村民耕种生产"]
[161,"乡村建设行动","农村基础设施","配套基础设施","五里牌街道","新庄社区","公路维修","改建","何家组","2025.06.05","2025.09.05","新庄社区","维修1.5公里",20,15,5,1,150,800,1,4,5,"方便居民平安出行","改善居民交通安全，提高居民生活水平"]
[162,"乡村建设行动","农村基础设施","配套基础设施","五里牌街道","新庄社区","公路维修","改建","月形组","2025.09.10","2025.11.10","新庄社区","维修2公里",30,20,10,1,200,1200,1,6,13,"方便居民平安出行","改善居民交通安全，提高居民生活水平"]
[163,"乡村建设行动","农村基础设施","配套基础设施","五里牌街道","千针村","公路维修","改建","新建组、兴发组","2025.3.1","2025.9.1","千针村","白改黑1000平方米",12,10,2,1,52,233,1,2,6,"此路改建好之后可以提高农民的出行质量。","此路改建好之后可以提高农民的出行质量，达到农民平安出行的满意度，使农民家中的农产品外出销售，从而提高农民收入。"]
[164,"乡村建设行动","农村基础设施","配套基础设施","五里牌街道","鸿鹤社区","山塘整修","改建","鸿鹤社区","2024.03.01","2024.03.30","鸿鹤社区","约1万立方清淤沟渠疏浚",8,7,1,null,88,369,null,2,7,"解决农田灌溉","山塘通过整修解决88户369人的粮食生产用水"]
[165,"乡村建设行动","农村基础设施","配套基础设施","五里牌街道","鸿鹤社区","污水沟整修","改建","鸿鹤社区","2024.09.12","2024.09.27","鸿鹤社区","约1万立方清淤沟渠疏浚",5,4,1,null,62,283,null,3,11,"解决农田灌溉","沟渠通过整修解决62户283人的粮食生产用水"]
[166,"乡村建设行动","农村基础设施","配套基础设施","五里牌街道","松峰村","公路维修","改建","松峰村下坝组至村委会","2024.02.03","2024.02.25","松峰村","公路维修2公里",120,20,100,1,983,4066,1,69,210,"方便居民平安出行","改善居民生活质量、提高居民生活水平。"]
[167,"产业发展","生产项目","养殖业基地","五里牌街道","松峰村","鸽子养殖","新建","松峰村安坡组","2024.03.123","2024.12.31","松峰村","新建4个养殖棚",260,60,200,1,983,4066,1,69,210,"此项目可促进农户增收，以及农副产品多样发展","利用本村闲置的荒山荒地促进农户增收"]
[168,"乡村建设行动","农村基础设施","配套基础设施","五里牌街道","千针村","机耕路","新建","千针村栗埜组","2024年3月1日","2024年3月30日","千针村","新建2250米",10,7,3,null,62,321,1,5,12,"此路改建好之后可以提高农民的出行及生产需求，达到农民平安出行的满意度。","此路改建好后可以提升村民的出行安全系数，生产需求，达到村民平安出行的满意度，使村民的农产品更便利，从而提高村民收入。"]
[169,"乡村建设行动","农村基础设施","配套基础设施","五里牌街道","千针村","机耕路","新建","千针村方家组","2024年3月12日","2024年3月27日","千针村","新建2250米",10,7,3,null,41,186,1,3,10,"此路改建好之后可以提高农民的出行及生产需求，达到农民平安出行的满意度。","此路改建好后可以提升村民的出行安全系数，生产需求，达到村民平安出行的满意度，使村民的农产品更便利，从而提高村民收入。"]
[170,"乡村建设行动","农村基础设施","配套基础设施","五里牌街道","新球社区","公路拓宽","改建","新球社区咀上组至石塘组","2024.01.01","2024.03.30","新球社区","公路拓宽1000米",15,10,5,null,133,496,1,2,4,"此项目实施后可保证133户，496人的平安出行。","此项目实施后可保证133户496人的安全出行，提高居民生活质量，达到居民满意度，提高居民的幸福指数。"]
[171,"乡村建设行动","农村基础设施","配套基础设施","五里牌街道","鸿鹤社区","上塘水库疏浚","基础建设","鸿鹤社区小源组","2024.03.01","2024.03.30","鸿鹤社区","约1万立方清淤，疏浚",7,5,2,1,100,498,null,2,7,"解决农田灌溉","改善村民灌溉用水，保障村民耕种生产。"]
[172,"乡村建设行动","农村基础设施","配套基础设施","五里牌街道","鸿鹤社区","污水沟整治","基础建设","丁家组屋前污水沟整治","2024.04.01","2024.05.30","鸿鹤社区","约1万立方清淤，疏浚",5,4,1,1,62,283,null,3,9,"解决农田灌溉","改善村民灌溉用水，保障村民耕种生产。"]
[173,"乡村建设行动","农村基础设施","配套基础设施","五里牌街道","鸿鹤社区","长塘水库疏浚","基础建设","鸿鹤社区小源组","2024.04.01","2024.05.30","鸿鹤社区","约1万立方清淤，疏浚",8,5,3,1,88,369,null,3,8,"解决农田灌溉","改善村民灌溉用水，保障村民耕种生产。"]
[174,"乡村建设行动","农村基础设施","配套基础设施","五里牌街道","鸿鹤社区","公路拓宽","基础建设","鸿鹤社区张家巷、丁家组","2024.04.01","2024.05.30",null,"张家巷公路拓宽及维修150米，丁家组1050米",30,20,10,1,206,892,null,2,7,"此路修建好之后可以提高农民的出行及生产需求，达到农民平安出行的满意度。","此路修建好之后可以提高农民的出行及生产需求，达到农民平安出行的满意度，使农民的农产品外出销售，从而提高农民收入。"]
[175,"乡村建设行动","农村基础设施","配套基础设施","五里牌街道","花桥村","屋场塘整修","基础建设","湾罗组、老屋组","2424.10.10","2024.11.30","花桥村","清淤、水污分离设施、挡土墙、排水排污管道",30,10,20,1,57,175,null,2,5,"解决农田灌溉","山塘通过整治整改解决58户175人村民的粮食生产"]
[176,"乡村建设行动","农村基础设施","配套基础设施","五里牌街道","千针村","山塘整修","基础设施","千针村老千组","2024.9","2024.12","千针村","约5000立方清淤及砌基脚，装管。",15,5,10,1,95,417,1,3,10,"解决农田灌溉","山塘通过整修解决95户417人的粮食生产用水，改善居民生活质量。"]
[177,"产业发展","生产项目","休闲农业与乡村旅游","羊楼司镇","龙窖山村","龙窖山村乡村旅游特色露营基地第二期","新建","龙窖山村铺上组","2025-02-10","2024-05-01","龙窖山村","竹林游步道120米、民宿营地步道100米。",20,15,5,1,76,320,0,12,37,"完善乡村旅游基础设施建设，促进产业发展，解决剩余劳力就业、增加脱贫（监测）户经济收入","企业+村委会+合作社+农户，劳务用工和土地流转"]
[178,"产业发展","生产项目","种植业基地","羊楼司镇","中洲社区","黄豆种植","新建","中洲社区中洲组","2025-05-01","2025-09-01","中洲社区","种植黄豆50亩",8,5,3,1,20,86,0,5,12,"种黄豆50亩，可以提高居民生活质量，为居民提供优质黄豆，同时发展了村集体经济","流转中洲组50亩地，带动产业发展"]
[179,"乡村建设行动","农村基础设施","其他","羊楼司镇","柘庄村","晒场坪硬化砌堪","新建","柘庄村港南组","2025-04-18","2025.5.8","柘庄村","晒场坪600平方米",15,10,5,1,20,95,0,1,2,"改善人居环境，方便群众出行","改善人居环境，方便群众出行"]
[180,"乡村建设行动","农村基础设施","其他","羊楼司镇","三港村","和美湘村第二期","扩建","细港组","2025-05-01","2025-11-01","三港村","和美湘村建设包含：4个美丽屋场建设共1500平方米及相关配套设施、4个菜园建设、种植中药材、产业路拓宽提质改造、安全饮水、河堤护砌。",400,300,100,1,458,1340,1,31,91,"创建省级美丽和美湘村，加快物质文明与精神文明协调的乡村建设新格局，实现乡村由表及里、形神兼备的全面提升，让农民就地能够过上现代文明生活。","和美湘村建设能带动脱贫、监测户劳动就业增加收入，发展村集体经济"]
[181,"乡村建设行动","农村基础设施","产业路、资源路、旅游路建设","羊楼司镇","梅池村","道路提质改造","新建","马井港至朱楼组","2025-04-01","2025-08-01","梅池村","全长2300米，宽5米",100,80,20,1,114,386,0,8,24,"梅池村道路提质改造发展村集体经济，发展旅游产业，同时带动脱贫人口和群众务工增收，群众出行方便","梅池村道路提质改造后发展村集体经济，生态农庄旅游观光、游泳、住民宿、烧烤露营等旅游，同时带动脱贫人口和群众务工增收。         "]
[182,"产业发展","配套设施项目","\n小型农田水利设施建设\n","羊楼司镇","双山村","朝门至桥档组河道护砌","改建","桥档组","2025.3.10","2025.5.10","双山村委会","朝门至桥档组河道护砌全长160米，高2.6米",16,10,6,1,50,227,1,2,2,"河道护砌，为农户种植业发展提供便利，减少洪涝灾害，确保辖区居民生命财产安全","河道护砌，灌溉基本农田，增加农作物产量，减少洪涝灾害，确保辖区居民生命财产安全"]
[183,"产业发展","生产项目","养殖业基地","羊楼司镇","双山村","双山村专业养殖","改造","铺上组","2025.3.1","2025.3.20","双山村委会","新增仔猪400头",20,15,5,1,443,1651,1,15,41,"新增仔猪400头400头，仔猪长成后卖出，增加村集体经济收入","增仔猪400头400头，仔猪长成后卖出，增加村集体经济收入，带动产业发展和农民增收"]
[184,"乡村建设行动","农村基础设施","产业路、资源路、旅游路建设","羊楼司镇","新屋村","新屋村罗形片区道路硬化","改建","新屋村罗形片区","2025-05-01","2025-12-01","新屋村","公路全长3000米，宽4.5米。",260,200,60,1,246,1680,1,20,66,"改善脱贫户的生产生活条件，方便村民出行。","改善村民出行条件，促进集体经济发展，同时为脱贫户提供就业岗位，增加脱贫人口收入"]
[185,"产业发展","生产项目","产业发展旅游附属场所及设施","羊楼司镇","尖山社区","和美乡村示范创建三期","新建","尖山社区","2025-04-01","2025-12-01","尖山社区","产业发展旅游附属场所及设施",380,360,20,5,2820,9160,1,55,176,"在社区内建设产业旅游场所及附属设施宜居宜业宜游和美乡村","发展壮大集体经济，提高居民经济收入，利于社区居民享受和美乡村的人居环境"]
[186,"乡村建设行动","农村基础设施","其他","羊楼司镇","尖山社区","竹情安置小区基础设施维护2025\n","基础设施维护","尖山社区","2025-04-01","2025-10-01","尖山社区","竹情安置小区所有基础设施\n",30,28,2,4,510,2136,0,55,176,"通过此项目实施给安置在这里的灾民脱贫户一个基础设施完善舒适的人居环境，让他们能够搬得出住得稳","通过此项目实施给安置在这里的灾民脱贫户一个基础设施完善舒适的人居环境，让他们能够搬得出住得稳"]
[187,"产业发展","配套设施项目","\n小型农田水利设施建设\n","羊楼司镇","友爱村","河道护堤","冲毁修复","友爱村冯下组-冯下组","2025-08-01","2025-09-01","友爱村","河道护堤长220米，宽1米，高2.5米",22,12,10,1,306,1380,0,9,29,"河道护堤修复220米，减少洪涝灾害，确保辖区居民生命财产安全","河道护堤修复220米，减少洪涝灾害，确保辖区居民生命财产安全"]
[188,"乡村建设行动","农村基础设施","产业路、资源路、旅游路建设","羊楼司镇","黄沙村","茶湾组入户断头路硬化","新建","茶湾组","2025-04-01","2025.4.30","黄沙村","入户断头路共长150米、宽3米、厚15公分",6.5,3,3.5,1,19,62,0,6,21,"改善脱贫户的生产生活条件，方便村民出行。","改善村民出行条件，促进集体经济发展，同时为脱贫户提供就业岗位，增加脱贫人口收入"]
[189,"产业发展","配套设施项目","\n小型农田水利设施建设\n","羊楼司镇","黄沙村","坝头组河堤护砌","新建","坝头组","2025-03-01","2025.3.31","黄沙村","河堤浆石护砌长35米、宽1.2米、高3米",11.5,6,5.5,1,25,120,0,5,18,"消除水患、确保粮食生产、增加群众收入","促进集体经济发展，同时为脱贫户提供就业岗位，增加脱贫人口收入"]
[190,"乡村建设行动","农村基础设施","其他","羊楼司镇","黄沙村","石必组至坝头组路灯","改建","石必组至坝头组","2025.8.30","2025.12.31","黄沙村","路长3500米，共七十盏路灯",17.5,10,7.5,1,76,294,0,10,42,"改善人居环境，方便群众出行","改善村民出行条件，促进集体经济发展，同时为脱贫户提供就业岗位，增加脱贫人口收入"]
[191,"产业发展","生产项目","种植业基地","羊楼司镇","如斯村","板栗园抚育施肥","新建","如斯村","2025\n年5月","2025\n年10月","如斯村","抚育160亩，施肥160亩",9,5,4,1,66,420,0,2,6,"3年丰产后预计年增加集体经济收入9万元","可解决村部分劳力就业问题"]
[192,"乡村建设行动","农村基础设施","产业路、资源路、旅游路建设","羊楼司镇","明星村","明星村斗岭组道路硬化","改造","明星村斗岭组道路硬化","2025-08-01",2025.9,"明星村","公路全长800米，宽3.5米。",35,20,15,1,32,137,1,4,13,"改善脱贫户的生产生活条件，方便村民出行。","改善村民出行条件，促进集体经济发展，同时为脱贫户提供就业岗位，增加脱贫人口收入"]
[193,"产业发展","生产项目","种植业基地","羊楼司镇","石壁村","再生稻基地建设","新建","石壁村","2025-03-01","2025年10","石壁村","再生稻种植100亩",5,4,1,1,364,1050,0,18,53,"再生稻种植100亩增加脱贫户及村民收入","再生稻种植100亩增加脱贫户及村民收入"]
[194,"乡村建设行动","农村基础设施","产业路、资源路、\n旅游路建","羊楼司镇","石壁村","机耕路机耕\n桥维修及硬化","新建","石壁村","2025-04-01","2025年7","石壁村","机耕路机耕桥\n维修及硬化120㎡",15,14,1,1,820,2865,0,18,53,"提升交通便利、\n增加就业机会、\n促进社会进步","提升交通便利、\n增加就业机会、\n促进社会进步"]
[195,"产业发展","配套设施项目","小型农田水利设施建设","羊楼司镇","石壁村","小型农田水利\n提升工程","新建","石壁村","2025-10-01","2025年12","石壁村","山塘整修清淤",14,13,1,1,869,3261,0,18,53,"提高供水能力、\n改善灌溉条件、\n防洪减灾","提高供水能力、\n改善灌溉条件、\n防洪减灾"]
[196,"乡村建设行动","农村基础设施","农村道路建设","羊楼司镇","雅团村","修桥铺路","新建","雅团村花屋组","2025-01-01","2025-05-01","雅团村","新桥梁修建长32米。宽4.6米",28,20,8,1,42,163,0,1,1,"目标1、高标准高质量建好桥；目标2、切实改善村民出行问题，改善交通运输，农产品销售。","1、助力农村经济发展；2、助力农产品销售；3、提高农民生活品质；4、方便村民出行。"]
[197,"产业发展","配套设施项目","\n小型农田水利设施建设\n","羊楼司镇","和平村","河道护堤","冲毁修复","和平村二屋组","2025-10-06","2025-12-06","和平村","河道护堤长210米，宽1.2米，高2米",21,14,7,1,108,650,1,6,24,"河道护堤修复210米，减少洪涝灾害，确保辖区居民生命财产安全","河道护堤修复210米，减少洪涝灾害，确保辖区居民生命财产安全"]
[198,"产业发展","配套设施项目","\n小型农田水利设施建设\n","羊楼司镇","和平村","河道护堤","冲毁修复","和平村四屋组","2025-10-18","2025年12月18","和平村","河道护堤100米，宽1.2米，高2.5米",12,7,5,1,208,860,1,9,32,"河道护堤修复100米，减少洪涝灾害，确保辖区居民生命财产安全","河道护堤修复100米，减少洪涝灾害，确保辖区居民生命财产安全"]
[199,"产业发展","生产项目","种植业基地","羊楼司镇","文白社区","油茶园抚育、施肥","新建","文白社区","2025-04-01","2025-05-01","文白社区","150亩",8.5,5,3.5,1,26,180,0,"4户",18,"7年丰产后预计年增加集体经济收入9万元","可解决村部分劳力就业问题"]
[200,"乡村建设行动","农村基础设施","其他","羊楼司镇","文白社区","农田恢复","新建","文白社区六方洲组","2025-06-01","2025-10-01","文白社区","36亩",13,8,5,1,20,160,0,"3户",12,"农田恢复，使农户增产增收","农田恢复，使农户增产增收"]
[201,"产业发展","配套设施项目","\n小型农田水利设施建设\n","羊楼司镇","黄金村","一房组河堤护砌","新建","黄金村一房组","2025-10-01","2025-12-01","黄金村","河堤护砌200米",10,5,5,1,28,150,0,2,6,"河堤护砌后农田免受洪水冲毁，农民种田增收，提高粮食产量，增加农民收入。","可解决农民种田受灾问题"]
[202,"产业发展","生产项目","养殖业基地","羊楼司镇","黄金村","养鸡场运营购买\n鸡苗、饲料","新建","黄金村","2025-04-01","2025-04-01","黄金村","购买鸡苗6000\n羽、饲料20吨",10,5,5,1,627,2971,0,3,14,"年底预计增加集体经济10万元","可解决村部分劳力就业问题"]
[203,"乡村建设行动","农村基础设施","其他","羊楼司镇","金鸡社区","龙形组新修机耕道","新建","金鸡社区","2025-06-01","2025-10-01","金鸡社区","新修机耕道1800米",10,5,5,1,43,210,0,2,6,"新修机耕道后龙形组农田免受洪水冲毁，减少农民种田成本，增加农民收入。","新修机耕道1800米，减少洪涝灾害，确保辖区群众生命财产安全。"]
[204,"乡村建设行动","农村基础设施","产业路、资源路、\n旅游路建设","羊楼司镇","桃树村","道路提质改造","新建","付家冲至下铺组","2025-03-01","2025-10-01","桃树村","全长2200米，宽4米",90,70,20,1,360,1600,0,11,36,"桃树村道路提质改造为发展村集体经济，带动发展种养殖产业，同时带动脱贫人口和群众务工增收，群众出行方便","桃树村道路提质改造后发展村集体经济，油茶园发展带动观光农业、田园综合体发展，同时带动脱贫人口和群众务工增收。"]
[205,"产业发展","生产项目","种植业基地","羊楼司镇","桃树村","油茶灌溉系统 ","新建","上下铺组","2025-04-01","2025-06-01","桃树村","150亩",20,10,10,1,106,340,0,11,36,"油茶种植发展集体经济，带动周边群众增收。","村集体经济+农户+脱贫户+监测户联农带农机制"]
[206,"产业发展","生产项目","劳动奖补","羊楼司镇","羊楼司镇","羊楼司镇庭院经济产业奖补2025","新建","羊楼司镇","2025-01-01","2025-05-01","临湘市羊楼司镇","脱贫户及监测户359户1044人",30,30,0,20,10101,50114,3,359,1044,"改善困难群众的生产生活，增加村民收入和带动村级集体经济事业发展。","通过产业奖补部分重点产业发展对象，激发各村（社区）群众发展生产和村（社区）发展集体产业的的积极性，同时也能改善困难群众的生产生活，增加村民收入和带动村级集体经济事业发展。"]
[207,"就业项目","公益性岗位","公益性岗位","羊楼司镇","羊楼司镇","羊楼司镇公益性岗位2025","新建","羊楼司镇","2025-01-01","2025-05-01","临湘市羊楼司镇","脱贫户及监测户359户1044人",40,32,8,20,10101,50114,3,359,1044,"为部分有劳力的脱贫户及监测户设岗增收","通过设立岗位激发脱贫对象劳动激情，增加收入"]
[208,"产业发展","生产项目","庭院特色种养殖","云湖街道","云湖街道办事处","云湖街道2025年庭院经济产业奖补","产业发展","云湖各村（社区）",2025.1,2025.12,"云湖街道办事处","5个村（社区）100户348人",25,10,15,5,100,348,5,87,301,"给大约100户、348人提供产业奖补","促进脱贫户、监测户产业增收，巩固脱贫成果"]
[209,"就业项目","公益性岗位","公益性岗位","云湖街道","云湖街道办事处","云湖街道2025年公益性岗位","就业项目","云湖各村（社区）",2025.1,2025.12,"云湖街道办事处","5个村（社区）45户141人",20,10,10,5,45,160,5,36,138,"给5个村社区提供公益性岗位45个受益160人以上","促进脱贫户监测户稳定就业，提供收入，巩固脱贫成果"]
[210,"乡村建设行动","农村基础设施","其他","云湖街道","飞跃社区","姚冲灌溉堰维修","修建","姚冲组",2025.3,2025.12,"飞跃社区","打驳岸，做灌溉水沟，长20米、宽1米、高1.5米",3,3,null,1,130,550,1,0,0,"打驳岸，做灌溉水沟，长20米、宽1米、高1.5米，能引水灌溉下游农田","保障农田灌排安全，促进产业稳定增收"]
[211,"乡村建设行动","农村基础设施","其他","云湖街道","飞跃社区","青龙嘴灌溉渠维修","修建","青龙组",2025.1,2025.12,"飞跃社区","打驳岸，灌溉渠维修，长35米，宽1.5米，高3米",5,5,null,1,320,960,1,0,0,"打驳岸，灌溉渠维修，长35米，宽1.5米，高3米，能灌溉下游农田","保障农田灌排安全，促进产业稳定增收"]
[212,"乡村建设行动","农村基础设施","其他","云湖街道","飞跃社区","姚冲组中屋段港坎维修","修建","姚冲组",2025.4,2025.12,"飞跃社区","港道清淤，打驳岸，长100米，宽2米，高2.5米",10,10,null,1,160,720,1,0,0,"港道清淤，打驳岸，长100米，宽2米，高2.5米","保障农田灌排安全，促进产业稳定增收"]
[213,"乡村建设行动","农村基础设施","农村道路建设","云湖街道","大岭村","蒋家组至五里烟冲黄家路基平整和硬化","修建","蒋家至烟冲黄家",2025.1,2025.12,"大岭村","路基平整1800米，硬化，厚度20㎝",180,100,80,1,1080,2580,1,23,48,"路基平整1800米，硬化，厚度20㎝","改善村居环境，降低日常成本"]
[214,"产业发展","配套设施项目","其他","云湖街道","大岭村","游冲组至思形水库路基新修","修建","游冲组",2025.1,2025.12,"大岭村","新修路基2400米，宽5米，水沟清理，渣土清运",28,20,8,1,28,118,1,4,7,"给村民提供了便利，200多亩山林资源逐步得到开发和发展。","改善农户人居环境，降低日常成本"]
[215,"乡村建设行动","农村基础设施","农村道路建设","云湖街道","大岭村","同德组至畈屋组道路拓宽","修建","大岭村",2025.1,2025.12,"大岭村","道路拓宽长1800米，宽5米",26,10,16,1,325,1144,1,10,26,"道路拓宽长1800米，路基宽5米","改善农户人居环境，降低日常成本"]
[216,"乡村建设行动","农村基础设施","农村道路建设","云湖街道","大岭村","余家组至板桥白鹤组村级公路硬化","修建","大岭村",2025.1,2025.12,"大岭村","连接路硬化长950米，宽3.5米，砌石护堤200米。",120,100,20,2,103,426,1,8,16,"连接路硬化长950米，宽3.5米，砌石护堤200米。","改善村居环境，促进产业稳定增收"]
[217,"乡村建设行动","农村基础设施","农村道路建设","云湖街道","三联村","大刘组至曾二组公路白改黑","修建","大刘组",2025.1,2025.12,"三联村","路基平整、路面白改黑800米宽4.5米",27,20,7,1,360,1520,1,8,36,"路基平整、路面白改黑800米","降低农户日常成本，保障群众出行安全"]
[218,"乡村建设行动","农村基础设施","农村道路建设","云湖街道","三联村","组级公路白改黑","修建","曾一组、八屋组、新塘组、毛坪组",2025.1,2025.12,"三联村","路基平整、路面白改黑1500米宽4.5米",48,20,28,1,220,931,1,5,22,"路基平整、路面白改黑1500米","降低农户日常成本，保障群众出行安全"]
[219,"乡村建设行动","农村基础设施","农村道路建设","云湖街道","三联村","长忠公路至划船蒋家组级公路硬化","修建","划船蒋家组",2025.1,2025.12,"三联村","路基平整、路面硬化长500米宽6米",6,6,null,1,32,315,1,3,14,"路基平整、路面硬化500米","降低农户日常成本，保障群众出行安全"]
[220,"乡村建设行动","农村基础设施","农村道路建设","云湖街道","三联村","划船组至蒋家组连接桥","修建","划船组蒋家组",2025.1,2025.12,"三联村","修一座长10米宽4米的桥",6,6,null,1,31,367,1,2,8,"修一座长10米宽4米的桥","降低农户日常成本，保障群众出行安全，促进产业稳定增收"]
[221,"乡村建设行动","农村基础设施","农村道路建设","云湖街道","三联村","易家组至老屋组公路白改黑","修建","易家组至老屋组",2025.1,2025.12,"三联村","路基平整、路面白改黑550米宽4.5米",19,19,null,1,86,633,1,5,20,"路基平整、路面白改黑350米","改善村民日常出行条件，保障防汛工作开展和群众安全。"]
[222,"乡村建设行动","农村基础设施","农村道路建设","云湖街道","王禾社区","东西头组至羊棚道路硬化","修建","东西头至羊棚",2025.1,2025.12,"王禾社区","路基整平、路面硬化3公里，宽5米",20,10,10,1,86,385,1,2,5,"路基整平、路面硬化3公里，宽5米","改善村民日常出行条件，保障防汛工作开展和群众安全。"]
[223,"乡村建设行动","农村基础设施","农村道路建设","云湖街道","王禾社区","大陈桥至张赵组道路拓宽、硬化","修建","大陈桥至张赵组",2025.1,2025.12,"王禾社区","路基整平、路面拓宽、硬化2公里，宽4.5米",25,10,15,1,106,463,1,8,33,"路基整平、路面拓宽、硬化2公里，宽4.5米","改善村民日常出行条件，保障防汛工作开展和群众安全。"]
[224,"乡村建设行动","农村基础设施","农村道路建设","云湖街道","王禾社区","三塘组至港下组道路拓宽硬化","修建","三塘组至港下组",2025.1,2025.12,"王禾社区","路基整平、路面拓宽、白改黑3.5公里，宽5米",30,15,15,1,245,1030,1,14,45,"路基整平、路面拓宽、白改黑3.5公里，宽5米","改善居民出行条件，促进脱贫户、监测户产业增收，巩固脱贫成果。"]
[225,"乡村建设行动","农村基础设施","农村道路建设","云湖街道","王禾社区","杜家组水渠维修","修建","杜家组",2025.1,2025.12,"王禾社区","水渠维修长260米、宽70",8,5,3,1,16,48,1,1,2,"水渠维修长260米、宽70","改善居民水系问题，促进产业增收"]
[226,"乡村建设行动","农村基础设施","其他","云湖街道","王禾社区","姚家组排水系统改造","修建","姚家组",2025.1,2025.12,"王禾社区","排水系统改造长500米",12,10,2,1,67,268,1,3,13,"排水系统改造长500米","改善农户内涝问题，促进产业发展，确保脱贫户、监测户产业增收，巩固脱贫成果。"]
[227,"乡村建设行动","农村基础设施","农村道路建设","云湖街道","王禾社区","富家垅至东西头组道路硬化","修建","富家垅至东西头组",2025.1,2025.12,"王禾社区","路基整平、路面硬化长1000米，宽4米",7,5,2,1,30,86,1,0,0,"路基整平、路面硬化1000米","保障森林防火工作开展和群众安全"]
[228,"产业发展","生产项目","种植业基地","云湖街道","板桥村","油茶基地","修建","白鹤组、港贝组",2025.2,2025.11,"板桥村","抚育茶树126亩",12,10,2,1,550,1760,1,10,32,"油茶苗完成抚育，提高茶株品质，延长植株效益时长；带动脱贫户监测户就业创收，巩固脱贫攻坚成果","带动产业发展，促进稳定增收，效益分红制"]
[229,"产业发展","生产项目","种植业基地","云湖街道","板桥村","棉油基地","修建","狄一、狄二组",2025.4,2025.11,"板桥村","种植棉花油菜110亩",10,5,5,1,96,365,1,9,36,"带动脱贫户及监测户就业创收，巩固脱贫攻坚成果","带动产业发展，促进稳定增收，效益分红制"]
[230,"乡村建设行动","农村基础设施","农村道路建设","云湖街道","板桥村","村级主公路白改黑项目","新建","全村范围",2025.1,2025.9,"板桥村","道路白改黑4500米",150,50,100,1,840,4500,1,66,215,"村级主路白改黑，铺沥青路面，方便脱贫户及村民出行，为乡村振兴提供交通便利，打下基础。","带动农户就业和产业发展，促进稳定增收，降低日常出行成本"]
[231,"产业发展","配套设施项目","其他","云湖街道","板桥村","自生组至新屋组段港磡护坡工程","新建","新屋组、东头一组、西头一组、付市组、自生组",2025.3,2025.7,"板桥村","护坡300米、机械道连通100米",35,25,10,1,125,586,1,12,45,"修整自生组至新屋组灌溉水系，提升附近农户的农业种养产量，提高农户和脱贫户收入，巩固脱贫攻坚成果","带动农户就业，促进产业稳定增收"]
[232,"乡村建设行动","农村基础设施","农村道路建设","云湖街道","板桥村","卢黄组道路拓宽","新建","卢黄组",2025.4,2025.9,"板桥村","道路拓宽1.5米，长800米",15,10,5,1,136,604,1,7,21,"拓宽道路，方便卢黄组及周边小组村民和脱贫户、监测户出行，为村民出入创收提供交通便利","带动农户就业，促进稳定增收"]
[233,"乡村建设行动","农村基础设施","其他","云湖街道","云湖易地搬迁安置小区","小区化粪池、雨污水管网疏通清理、维修","修建","飞跃社区",2025.1,2025.12,"云湖易地搬迁安置小区","小区化粪池、雨污水管网疏通清理、维修",12,8,4,1,167,623,1,167,623,"小区化粪池、雨污水管网疏通清理、维修","改善人居环境，降低农户日常生活成本"]
[234,"产业发展","生产项目","种植业基地","云湖街道","云湖易地搬迁安置小区","小区蔬菜基地土地续租","修建","飞跃社区",2025.1,2025.12,"云湖易地搬迁安置小区","续租小区蔬菜基地",6,5,1,1,167,623,1,167,623,"续租小区蔬菜基地","带动脱贫户发展产业，减少脱贫户生活成本，降低返贫几率。"]
[235,"乡村建设行动","农村基础设施","农村道路建设","云湖街道","云湖易地搬迁安置小区","小区蔬菜基地机耕路硬化","修建","飞跃社区",2025.1,2025.12,"云湖易地搬迁安置小区","小区蔬菜基地机耕路长300米宽4.5米",15,10,5,1,167,623,1,167,623,"小区蔬菜基地机耕路长300米宽4.5米","带动农户就业，促进稳定增收"]
[236,"乡村建设行动","农村基础设施","其他","长塘镇","马安村","肖黄家大塘整修","改建","马安村肖黄家","2025.1.1","2025.12.20","马安村","取淤6000方，驳岸",20,15,5,1,148,720,1,5,17,"肖黄家大塘取淤驳岸，便利群众农田用水灌溉以及洪涝时田水及时泄洪，改善生产生活条件。","改善了肖黄家群众与脱贫户的经济收入，提高经济效益，长久收益群众满意度100％"]
[237,"乡村建设行动","农村基础设施","农村道路建设","长塘镇","托坝社区","通犁头港塘东塘西段道路硬化","新建","塘东组、塘西组","2025.3.1","2025.8.30","托坝社区","约长700米 宽3.5米",34,10,24,1,280,600,1,3,4,"道路硬化，为塘东塘西脱贫户以及广大群众创造了更好、更便利的生道路条件，改善人居环境，使群众满意度100%","道路硬化，为塘东塘西脱贫户以及广大群众创造了更好、更便利的生道路条件，改善人居环境，使群众满意度100%"]
[238,"产业发展","生产项目","种植业基地","长塘镇","托坝社区","油菜种植","新建","游港河","2025.9.1","2026.4.20","托坝社区","油菜种植150亩",11,5,6,1,680,2700,1,5,17,"完成我社区油菜种植150亩，带动增加产值17万，带动周边群众20人就业","完成我社区油菜种植150亩，带动增加产值17万，带动周边群众20人就业"]
[239,"乡村建设行动","农村基础设施","产业路","长塘镇","古洞村","机耕路硬化","新建","曹新组","2025.4.2","2025.5.1","古洞村","500米",10,6,4,1,592,1815,1,3,7,"通过水利维修，解决脱贫户及广大群众的灌溉用水，促进农业增产增收，群众满意度100%","改善一般群众与脱贫户的生产生活用水，有利于农田灌溉，粮食种植提升经济效益，促进巩固脱贫成效，长久受益群众满意度100%"]
[240,"乡村建设行动","农村基础设施","农村道路建设","长塘镇","古洞村","道路驳岸","新建","毛家组","2025.3.1","2025.4.1","古洞村","50米",8,5,3,1,180,673,1,6,15,"通过水利维修，解决脱贫户及广大群众的灌溉用水，促进农业增产增收，群众满意度100%","改善一般群众与脱贫户的生产生活用水，有利于农田灌溉，粮食种植提升经济效益，促进巩固脱贫成效，长久受益群众满意度100%"]
[241,"乡村建设行动","农村基础设施","其他","长塘镇","何洞村","大坡塘维修","改建","新屋一组","2025.05.01","2025.05.15","何洞村委会","清淤80立方、打衬砌180平方、30水管80米",5,5,0,1,23,93,1,2,5,"大坡塘维修，为村贫困户以及广大群众创造了更好、更便利的灌溉条件。方便群众生产生活群众满意度100%","大坡塘维修，为村贫困户以及广大群众创造了更好、更便利的灌溉条件。方便群众生产生活群众满意度100%"]
[242,"乡村建设行动","农村基础设施","其他","长塘镇","何洞村","东风水库维修","改建","对门组","2025.05.01","2025.05.10","何洞村委会","清淤500立方、打衬砌420平方、30水管130米",15,10,5,1,82,357,1,3,8,"东风水库维修，为村贫困户以及广大群众创造了更好、更便利的灌溉条件。方便群众生产生活群众满意度100%","东风水库维修，为村贫困户以及广大群众创造了更好、更便利的灌溉条件。方便群众生产生活群众满意度100%"]
[243,"乡村建设行动","农村基础设施","小型桥梁建设","长塘镇","何洞村","危桥改造","改建","草塘组","2025.03.01","2025.05.01","何洞村委会","桥长10米、宽5米、高2米",30,20,10,1,138,543,1,4,6,"危桥改造，为村贫困户以及广大群众创造了更好、更便利的出行条件，改善人居环境，群众满意度100%","危桥改造，为村贫困户以及广大群众创造了更好、更便利的出行条件，改善人居环境，群众满意度100%"]
[244,"产业发展","生产项目","种植业基地","长塘镇","柳厂村","柳厂村棉花种植基地","新建","柳家山","2025.1.1","2025.11.1","柳厂村委会","基地驳岸填土、种植棉花100亩",60,40,20,1,260,1170,1,10,42,"产业发展，能让周边的困难群众及脱贫户就近就地就业，能增加老百姓收入，改变生活质量，巩固脱贫成果，长久受益群众满意度100%","带动困难群众及脱贫户就近就地就业"]
[245,"乡村建设行动","农村基础设施","其他","长塘镇","柳厂村","柳厂村山湾塘建设","维修","谢塘组","2025.7.1","2025.10.1","柳厂村委会","取淤泥：3500立方，溢洪道宽：1米、管道200米",14,10,4,1,120,504,1,5,20,"山塘维修，可改善一般群众与脱贫户的生产生活用水，有利于农田灌溉，粮食种植提升经济效益，促进巩固脱贫成效，长久受益群众满意度100%","改善一般群众与脱贫户的生产生活用水，有利于农田灌溉，粮食种植提升经济效益，"]
[246,"乡村建设行动","农村基础设施","其他","长塘镇","柳厂村","柳厂村机埠建设","新建","柳厂村","2025.3.1","2025.7.1","柳厂村委会","水渠维修、机部房一个、水泵一个、电机等设备",11,9,2,1,570,2660,1,11,43," 新建机埠能够改善灌溉条件，确保农田在干旱时期也能得到充足且及时的灌溉，从而提高农作物的产量和质量，增加群众与脱贫户的农业收入，促进巩固脱贫成效，长久受益群众满意度100%","改善一般群众与脱贫户的生产生活用水，有利于农田灌溉，粮食种植提升经济效益，"]
[247,"乡村建设行动","农村基础设施","产业路","长塘镇","石田村","上铺组道路维修","维修","石田片","2025.1.1","2025.5.1","石田村","长约50米、宽6米、厚0.4米",2.6,2.6,0,1,"280户",1120,1,4,5,"上铺组道路维修，为石田村脱贫户以及广大群众出行方便，群众满意度100%。","上铺组道路维修，为石田村脱贫户以及广大群众出行方便，群众满意度100%。"]
[248,"产业发展","配套设施项目","小型农田水利设施建设","长塘镇","水圳村","水圳村边坎组机耕路硬化","新建","水圳村边坎组","2025.10.1","2025.11.10","水圳村委会","全长400米*3米*0.2米",18,10,8,1,104,480,1,3,11,"改善一般群众与脱贫户的运输与出行，生产耕种，提升经济效益，促进巩固脱贫成效，长久受益群众满意度100%","改善一般群众与脱贫户的运输与出行，生产耕种，提升经济效益，促进巩固脱贫成效，长久受益群众满意度100%"]
[249,"产业发展","配套设施项目","小型农田水利设施建设","长塘镇","水圳村","水圳村细屋组机耕路硬化","新建","水圳村细屋组","2025.8.1","2025.9.1","水圳村委会","全长300米*3米*0.2米",15,10,5,1,135,626,1,6,16,"改善一般群众与脱贫户的运输与出行，生产耕种，提升经济效益，促进巩固脱贫成效，长久受益群众满意度100%","改善一般群众与脱贫户的运输与出行，生产耕种，提升经济效益，促进巩固脱贫成效，长久受益群众满意度100%"]
[250,"产业发展","生产项目","种植业基地","长塘镇","长塘社区","蔬菜基地","新建","彭台组","2025.1.1","2025.12.31","长塘社区","蔬菜种植4亩",20,15,5,1,168,698,1,3,6,"完成我社区蔬菜种植4亩，带动增加产值15万，带动群众6人就业，其中贫困劳动力3人。受益建档贫困户3户6人，群众满意度100％","带动脱贫户6人就业"]
[251,"就业项目","公益性岗位","公益性岗位","长塘镇","长塘镇","长塘镇公益岗位","新建","长塘镇","2025.1.1","2025.12.31","长塘镇人民政府","35人",20,20,0,8,35,35,8,35,35,"提升脱贫户生活质量，巩固脱贫攻坚成果，提高脱贫户收入","带动脱贫户35人就业"]
[252,"产业发展","生产项目","庭院特色养殖","长塘镇","长塘镇","长塘镇2025年庭院经济发展","新建","长塘镇","2025.1.1","2025.12.31","长塘镇人民政府","猪仔100头，鸡2500只",18,18,0,8,150,410,8,150,410,"提升脱贫户生活质量，巩固脱贫攻坚成果，提高脱贫户收入","带动脱贫户发展产业，增加收入"]
[253,"乡村建设行动","人居环境整治","农村污水治理","长塘镇","长塘镇","长塘镇犁头港（柳厂-石田-托坝居委会-古洞）水环境治理","改建","长塘镇","2025.1.1","2025.12.31","长塘镇人民政府","犁头港清淤疏浚、护坡绿化12千米",120,100,20,8,150,410,8,150,410,"通过水利维修，解决脱贫户及广大群众的灌溉用水，促进农业增产增收，使群众满意度100%","改善一般群众与脱贫户的生产生活，有利于农田灌溉，粮食种植提升经济效益，促进巩固脱贫成效，使群众满意度达到100%"]
[254,"乡村建设行动","农村基础设施","农村供水保障","长塘镇","长塘镇","长塘镇自来水管网维修改造","新建","长塘镇","2025.1.1","2025.12.31","长塘镇","马安村石田村自来水管网维修改造2.5千米",100,80,20,2,2010,5986,2,49,129,"用于改善群众用水质量，保障群众健康","用于改善群众用水质量，保障群众健康"]
[255,"乡村建设行动","农村基础设施","农村道路建设","长塘镇","长塘镇","长塘镇托坝－石田道路维修改造","新建","长塘镇托坝－石田","2025.2.10","2025.12.31","长塘镇","道路维修改造２千米",120,95,25,2,3976,7145,2,54,149,"完善道路拓宽硬化，可改善一般群众与脱贫户的运输与出行，生产耕种，提升经济效益，促进巩固脱贫成效，长久受益群众满意度100%","方便一般群众与脱贫户的运输与出行"]
[256,"乡村建设行动","农村基础设施","农村水利建设","忠防镇","忠防镇","忠防镇2024年度镇域内沟渠修整","改建","忠防镇","1月","12月","忠防镇","镇域集镇片区沟渠修整",30,30,0,1,50,162,0,2,5,"保障村民生产用水，提高农业生产。","保障脱贫户和周边群众的生产用水、增加脱贫户和周边群众的农业收入，群众满意度100%"]
[257,"乡村建设行动","农村基础设施","农村道路建设","忠防镇","忠防镇","忠防镇2024年度镇域公路修整","改建","忠防镇","1月","12月","忠防镇","镇域集镇片区公路修改造",30,30,0,1,45,143,0,3,8,"保障居民出行安全，节省出行时间","保障脱贫户脱贫户和周边群众的出行安全、增加脱贫户和周边群众的生活收入，群众满意度100%"]
[258,"产业发展","生产项目","种植业基地","忠防镇","忠防镇","忠防镇2025年庭院经济发展","新建","忠防镇","1月","12月","忠防镇","庭院经济发展奖补",15,15,0,11,190,554,1,190,554,"利于脱贫户自力更生，利用鼓励种养增加收入保障脱贫成效，奖补金额补贴种养支。","利于脱贫户自力更生，利用鼓励种养增加收入保障脱贫成效，奖补金额补贴种养支出。"]
[259,"就业项目","公益性岗位","公益性岗位奖补","忠防镇","忠防镇","忠防镇2025年公益岗位补贴","新建","忠防镇","1月","12月","忠防镇","公益岗位奖补",15,15,0,11,35,35,1,35,35,"用于鼓励脱贫户监测户自力更生，做保洁员等公益性岗位奖补，保证收入问题。","用于鼓励脱贫户监测户自力更生，做保洁员等公益性岗位奖补，保证收入问题。"]
[260,"乡村建设行动","农村基础设施","农村道路建设","忠防镇","邱坪社区","忠防镇邱坪社区地坡组公路拓宽硬化","改建","邱坪社区","1月","8月","邱坪社区居民委员会","道路设施拓宽硬化500米，宽3.5米",20,20,0,1,178,435,0,1,2,"完善基础设施，提高群众出行安全","保障脱贫户和居民安全出行，道路末端有一座小二型水库（向家冲水库），完善防汛道路。提高了生活质量，增加了脱贫户及村民的生活收入，群众满意度100%。"]
[261,"乡村建设行动","农村基础设施","农村道路建设","忠防镇","邱坪社区","忠防镇邱坪社区大坝集镇油东路道路硬化","改建","邱坪社区","1月","8月","邱坪社区居民委员会","道路硬化160米，宽约5米",17.5,7.5,10,1,120,354,0,0,0,"完善基础设施，提高群众出行安全","保障脱贫户和村民安全出行，减少交通事故，提高了生活质量，增加了脱贫户及村民的生活收入，群众满意度100%。"]
[262,"乡村建设行动","农村基础设施","农村道路建设","忠防镇","忠防社区","忠防镇忠防社区鸡畈组道路硬化\n","改建","鸡畈组","8月","9月","忠防社区","路面提质改造420米",16,16,0,1,26,122,0,1,3,"全长420米。护坡35立方，保障出行安全，节省出行时间。","保障脱贫户和村民安全出行，减少交通事故，提高了生活质量，增加了脱贫户及村民的生活收入，群众满意度100%。"]
[263,"乡村建设行动","农村基础设施","农村道路建设","忠防镇","新田村","上屋组公路破板、拓宽、硬化","改建","新田村","1月","6月","新田村委会","道路设施拓宽1.5米、硬化1200米",24,14,10,1,78,752,0,7,19,"完善基础设施，提高群众出行安全","保障脱贫户和村民安全出行，减少交通事故，提高了生活质量，增加了脱贫户及村民的生活收入，群众满意度100%。"]
[264,"乡村建设行动","农村基础设施","农村道路建设","忠防镇","新田村","黄土坳公路破板、拓宽、硬化","改建","新田村","1月","6月","新田村委会","道路设施拓宽1.5米、硬化1900米",28,18,10,1,67,484,0,4,10,"完善基础设施，提高群众出行安全","保障脱贫户和村民安全出行，减少交通事故，提高了生活质量，增加了脱贫户及村民的生活收入，群众满意度100%。"]
[265,"乡村建设行动","农村基础设施","农村道路建设","忠防镇","马家洞村","大同至双港口公路拓宽硬化","改建","马家洞村","1月","12月","马家洞村委会","道路设施拓宽长600米，宽1.5米 ",12,12,0,1,211,620,0,34,120,"完善基础设施，提高群众出行安全","保障脱贫户和村民安全出行，减少交通事故，提高了生活质量，增加了脱贫户及村民的生活收入，群众满意度100%。"]
[266,"乡村建设行动","农村基础设施","农村道路建设","忠防镇","马家洞村","窑前桥公路砌磡拓宽","新建","马家洞村","1月","12月","马家洞村委会","砌墈150立方",6,6,0,1,80,280,0,20,86,"完善基础设施，提高群众出行安全","保障脱贫户和村民安全出行，减少交通事故，提高了生活质量，增加了脱贫户及村民的生活收入，群众满意度100%。"]
[267,"乡村建设行动","农村基础设施","农村道路建设","忠防镇","马家洞村","马家洞公路碑头弯破板硬化维修","改建","马家洞村","1月","12月","马家洞村委会","道路破板硬化400平方",6,6,0,1,360,1230,1,42,138,"完善基础设施，提高群众出行安全","保障脱贫户和村民安全出行，减少交通事故，提高了生活质量，增加了脱贫户及村民的生活收入，群众满意度100%。"]
[268,"乡村建设行动","农村基础设施","农村供水保障设施建设","忠防镇","响山村","响山组狮子垅水渠、小石峰子垅水渠","改建","响山村","6月","7月","响山村委会","水渠整改1800米，宽0.6米。",28,28,0,1,120,480,0,8,16,"完善农田灌溉基础设施","利于脱贫户和周边群众生产用水，群众满意度100%"]
[269,"乡村建设行动","农村基础设施","产业路、资源路、旅游路建设","忠防镇","响山村","响山组至生态园路基建设","新建","响山村","5月","6月","响山村委会","道路设施拓宽1.2km，宽6米。",15,15,0,1,105,420,0,4,7,"完善基础设施，提高群众出行安全","保障脱贫户和村民安全出行，减少交通事故，提高了生活质量，增加了脱贫户及村民的生活收入，群众满意度100%。"]
[270,"乡村建设行动","农村基础设施","农村道路建设","忠防镇","响山村","申畈组、小石组桥梁建设","新建","响山村","9月","11月","响山村委会","桥梁建设申畈桥18米，宽5米，小石桥22米，宽5米。",62,62,0,1,35,130,0,3,9,"完善基础设施，提高群众出行安全","保障脱贫户和村民安全出行，减少交通事故，提高了生活质量，增加了脱贫户及村民的生活收入，群众满意度100%。"]
[271,"产业发展","生产项目","休闲农业与乡村旅游","忠防镇","响山村","促进村集体经济发展乡村旅游—大石仙境","新建","响山村","3月","9月","响山村委会","大石网红打卡点旅游开发建设",100,100,0,1,85,350,0,4,15,"促进村集体经济发展乡村旅游","促进村集体经济发展乡村旅游，群众满意度100%"]
[272,"乡村建设行动","农村基础设施","农村道路建设","忠防镇","双港村","忠防镇双港村朱峦组路灯建设","新建","双港村","1月","12月","双港村委会","路灯建设，全长1.5公里",10,2,8,1,39,350,0,3,5,"完善基础设施，方便村民出行，增强公共安全","保障脱贫户和村民安全出行，减少交通事故，提高了生活质量，增加了脱贫户及村民的生活收入，群众满意度100%。"]
[273,"乡村建设行动","农村基础设施","农村供水保障设施建设","忠防镇","双港村","    忠防镇双港村陈家组水渠维修","改建","双港村","1月","12月","双港村委会","水渠维修全长1000米",20,5,15,1,84,415,0,6,26,"提高农户幸福感，有利于脱贫户和周边群众生产用水","利于脱贫户和周边群众生产用水，群众满意度100%"]
[274,"乡村建设行动","农村基础设施","农村供水保障设施建设","忠防镇","沙坪村","忠防镇沙坪村团山水渠整修硬化A段","改建","沙坪村","5月","6月","沙坪村委会","水渠整修硬化500米",12,8,4,1,89,560,0,8,17,"构建美丽宜居新农村，提高农户幸福感。利于脱贫户和周边群众生产用水。","保障脱贫户和周边群众的生产生活用水，增加脱贫户和周边群众的农业收入，群众满意度100%。"]
[275,"乡村建设行动","农村基础设施","农村供水保障设施建设","忠防镇","沙坪村","忠防镇沙坪村杨陆水渠整修硬化A段","改建","沙坪村","8月","9月","沙坪村委会","水渠整修硬化400米",10,7,3,1,76,480,0,5,9,"构建美丽宜居新农村，提高农户幸福感。利于脱贫户和周边群众生产用水。","利于脱贫户和周边群众生产用水，群众满意度100%"]
[276,"乡村建设行动","农村基础设施","农村道路建设","忠防镇","渔潭村","忠防镇渔潭村方坡组公路拓宽","改建","渔潭村","1月","12月","渔潭村委会","公路拓宽全长400米，宽1米左右",24,20,4,1,112,341,0,2,5,"完善基础设施，提高群众出行安全","保障脱贫户和村民安全出行，减少交通事故，提高了生活质量，增加了脱贫户及村民的生活收入，群众满意度100%。"]
[277,"乡村建设行动","农村基础设施","农村供水保障设施建设","忠防镇","渔潭村","忠防镇渔潭村张龙组、湾上组水泵房新建","新建","渔潭村","1月","12月","渔潭村委会","新建水泵房面积约13平方米，水泵两处，部分水管",22,18,4,1,200,654,0,3,7,"利于群众生活用水","保障脱贫户和周边群众的生产生活用水，增加脱贫户和周边群众的农业收入，群众满意度100%。"]
[278,"乡村建设行动","农村基础设施","农村供水保障设施建设","忠防镇","雁峰村","忠防镇雁峰村交畈组水渠整修","改建","雁峰村","4月","9月","雁峰村委会","水渠整修长1500米宽0.8米",32,32,0,1,85,320,0,4,12,"构建美丽宜居新农村，提高农户幸福感。利于脱贫户和周边群众生产用水。","利于脱贫户和周边群众生产用水，群众满意度100%"]
[279,"乡村建设行动","农村基础设施","农村道路建设","忠防镇","木形村","一步石桥至永洞组机械道路拓宽","改建","木形村","3月","4月","木形村民委员会","道路设施拓宽1300米，宽4.5米 ",40,25,15,1,68,473,0,4,13,"完善基础设施，提高群众出行安全","保障脱贫户和村民安全出行，减少交通事故，提高了生活质量，增加了脱贫户及村民的生活收入，群众满意度100%。"]
[280,"乡村建设行动","农村基础设施","农村供水保障设施建设","忠防镇","木形村","廖家组至老屋组港墈清淤","改建","木形村","7月","8月","木形村民委员会","港墈清淤1000米，宽4.5米 ",12,10,2,1,160,761,0,5,24,"提升农田水利收成，改善我村基本设施。","保障脱贫户和村民增加了脱贫户及村民的生活收入，群众满意度100%。"]
[281,"乡村建设行动","农村基础设施","农村道路建设","忠防镇","汀畈社区","忠防镇汀畈社区青山咀西家垅道路硬化","改建","青山咀","3月","4月","汀畈社区居委会","道路提质改造150米 ",10,5,5,1,73,257,0,1,0,"完善基础设施，提高群众出行安全","保障脱贫户和居民安全出行，减少交通事故，提高了生活质量，增加了脱贫户及村民的生活收入，群众满意度100%。"]
[282,"乡村建设行动","农村基础设施","农村道\n路建设","忠防镇","忠防社区","轨道维修","改建","忠防社区","1月","7月","忠防镇","轨道维修15公里，更换木枕25000根。",307.5,142.5,165,11,316,2136,0,46,128,"完成轨道维修15公里，更换木枕25000根。","保障脱贫户和村民安全出行，减少交通事故，提高了生活质量，增加了脱贫户及村民的生活收入，群众满意度100%。"]
[283,"乡村建设行动","农村基础设施","农村道\n路建设","忠防镇","忠防社区","隧道维修","改建","忠防社区","1月","7月","忠防镇","隧道维修300米（LED灯具、导光板、反光设施、安装线路）更换LED灯具60个、导光板300米、反光环6个、安装线路300米、隧道衬砌加固4399m³；",210.2,93.2,117,11,316,2136,0,46,128,"完成隧道维修300米（LED灯具、导光板、反光设施、安装线路）更换LED灯具60个、导光板300米、反光环6个、安装线路300米、隧道衬砌加固4399m³；","保障脱贫户和村民安全出行，减少交通事故，提高了生活质量，增加了脱贫户及村民的生活收入，群众满意度100%。"]
[284,"乡村建设行动","农村基础设施","其  他","忠防镇","忠防社区","旅游公厕及沿线站点建设","新建","忠防社区","1月","7月","忠防镇","沿线护坡维护4272m²；站台维修共计12000m²，以及沿线游客憩息区建设，旅游公厕建设等。",716,556.2,159.8,11,316,2136,0,46,128,"完成沿线护坡维护4272m²；站台维修共计12000m²，以及沿线游客憩息区建设，旅游公厕建设等。","完善当地旅游业配套设施，带动当地旅游业的发展，带动了当地村民土特产出售，增加村民收入"]
[285,"乡村建设行动","农村基础设施","其他","詹桥镇","壁山村","2025年詹桥镇壁山村河港整修","新建","陈家组、庙坡组","1月","12月","壁山村","整修河港500米",48,48,null,1,110,375,1,5,16,"基础设施改造，提高脱贫户和其他群众生产生活条件","基础设施+农户保障相结合"]
[286,"乡村建设行动","农村基础设施","其他","詹桥镇","壁山村","2025年詹桥镇壁山村饮水工程","新建","高岭组","1月","12月","壁山村","蓄水池300m³蓄水坝",78,78,null,1,368,1590,1,20,73,"基础设施改造，提高脱贫户和其他群众生产生活条件","基础设施+农户保障相结合"]
[287,"乡村建设行动","农村基础设施","其他","詹桥镇","壁山村","2025年詹桥镇壁山村茶园提质改造","新建","塘冲组","1月","12月","壁山村","茶园维护改造30亩",10,10,null,1,110,375,1,12,35,"基础设施改造，提高脱贫户和其他群众生产生活条件","基础设施+农户保障相结合"]
[288,"乡村建设行动","农村基础设施","农村道路建设","詹桥镇","分水村","2025年詹桥镇分水村陈东组道路拓宽","新建","陈东组","1月","12月","分水村","陈东组道路拓宽70米",20,20,null,1,25,189,1,2,8,"此项目实施提高农户生活质量，提升脱贫户脱贫质量，进一步巩固脱贫成果","基础设施+农户保障相结合"]
[289,"乡村建设行动","农村基础设施","农村道路建设","詹桥镇","分水村","2025年詹桥镇分水村陈东组、陈西组循环路新修","新建","陈东、陈西组","1月","12月","分水村","新修陈东组、陈西组循环路40米",15,15,null,1,52,312,1,5,17,"此项目实施提高农户生活质量，提升脱贫户脱贫质量，进一步巩固脱贫成果","基础设施+农户保障相结合"]
[290,"乡村建设行动","农村基础设施","农村道路建设","詹桥镇","分水村","2025年詹桥镇分水村王家组道路拓宽","新建","王家组","1月","12月","分水村","王家组道路拓宽120米",30,30,null,1,26,280,1,2,6,"此项目实施提高农户生活质量，提升脱贫户脱贫质量，进一步巩固脱贫成果","基础设施+农户保障相结合"]
[291,"乡村建设行动","农村基础设施","其他","詹桥镇","分水村","2025年詹桥镇分水村闵家组河港砌磡","新建","闵家组","1月","12月","分水村","闵家组河港砌磡40米",10,10,null,1,18,165,1,2,8,"此项目实施提高农户生活质量，提升脱贫户脱贫质量，进一步巩固脱贫成果","基础设施+农户保障相结合"]
[292,"乡村建设行动","农村基础设施","其他","詹桥镇","分水村","2025年詹桥镇分水村闵家组山塘维修","新建","闵家组","1月","12月","分水村","闵家组山塘维修",5,5,null,1,18,144,1,3,8,"此项目实施提高农户生活质量，提升脱贫户脱贫质量，进一步巩固脱贫成果","基础设施+农户保障相结合"]
[293,"乡村建设行动","农村基础设施","农村道路建设","詹桥镇","贺畈社区","2025年詹桥镇贺畈社区上屋组道路扩宽及硬化","新建","贺畈社区上屋组","3月","12月","詹桥镇","上屋组道路扩宽及硬化800米",25,25,null,1,79,322,1,1,2,"此项目实施提高农户生活质量，提升脱贫户脱贫质量，进一步巩固脱贫成果","基础设施+农户保障相结合"]
[294,"乡村建设行动","农村基础设施","农村道路建设","詹桥镇","贺畈社区","2025年詹桥镇贺畈社区山上组道路建设及维修","新建","贺畈社区山上组","3月","12月","詹桥镇","山上组道路建设及维修400米",20,20,null,1,23,41,1,2,7,"此项目实施提高农户生活质量，提升脱贫户脱贫质量，进一步巩固脱贫成果","基础设施+农户保障相结合"]
[295,"乡村建设行动","农村基础设施","其他","詹桥镇","贺畈社区","2025年詹桥镇贺畈社区鸦下组饮水工程改造","新建","贺畈社区鸦下组","2025年3月","2025年12月","詹桥镇","鸦下组饮水工程改造沟渠管道铺设100米",8,8,null,1,64,185,1,2,5,"此项目实施提高农户生活质量，提升脱贫户脱贫质量，进一步巩固脱贫成果","基础设施+农户保障相结合"]
[296,"乡村建设行动","农村基础设施","其他","詹桥镇","贺畈社区","2025年詹桥镇贺畈社区下屋组饮水工程改造","新建","贺畈社区下屋组","2025年3月","2025年12月","詹桥镇","下屋组饮水工程改造沟渠管道铺设120米",9,9,null,1,64,185,1,1,3,"此项目实施提高农户生活质量，提升脱贫户脱贫质量，进一步巩固脱贫成果","基础设施+农户保障相结合"]
[297,"乡村建设行动","农村基础设施","其他","詹桥镇","三界村","2025年詹桥镇三界村河港整修","新建","三界村","2025年5月","2025年5月","三界村","老屋组河港整修23米",5,5,null,1,50,187,1,3,18,"为了方便群众出行和安全，基础设施改造，提高脱贫户和其他群众生产生活条件","基础设施+农户保障相结合"]
[298,"产业发展","生产项目","种植业基地","詹桥镇","沙团村","2025年詹桥镇沙团村生姜种植","新建","沙团村付家组","2025年4月","2025年6月","沙团村","生姜种植50亩",25,25,null,1,1376,5020,null,73,240,"发展集体经济，带动群众发展产业，增加群众及贫困户收入，巩固脱贫成果","种植基地+农户就业相结合"]
[299,"乡村建设行动","农村基础设施","农村道路建设","詹桥镇","沙团村","2025年詹桥镇沙团村坟湾桥至高岭村部公路拓宽附属工程","新建","沙团村坟湾桥至高岭老村部公路","2025年4月","2025年12月","沙团村","坟湾桥至高岭村部全场2700M\n1：排水沟长2200M宽0.4M高0.6CM等于530m³",30,30,null,1,160,630,1,14,155,"为了方便群众出行和安全，基础设施改造，提高脱贫户和其他群众生产生活条件","基础设施+农户保障相结合"]
[300,"乡村建设行动","农村基础设施","其他","詹桥镇","沙团村","2025年詹桥镇沙团村黄金堂港墈维修","新建","沙团村黄金堂组","2025年3月","2025年4月","沙团村","港墈维修270m",28,28,null,1,73,235,1,5,62,"为了方便群众出行和安全，基础设施改造，提高脱贫户和其他群众生产生活条件","基础设施+农户保障相结合"]
[301,"乡村建设行动","农村基础设施","农村道路建设","詹桥镇","水泉村","2025年詹桥镇水泉村寺西组公路拓宽","新建","水泉村","2025年6月","2025年7月","水泉村","寺西组公路拓宽70米",23,23,null,1,131,510,1,11,56,"此项目实施，通过帮助发展产业，改变住户生活质量，提升脱贫户脱贫质量，进一步巩固脱贫成果","基础设施+农户保障相结合"]
[302,"乡村建设行动","农村基础设施","其他","詹桥镇","水泉村","2025年詹桥镇水泉村南山水库排水渠道整修","新建","水泉村","2025年3月","2025年4月","水泉村","南山水库排水渠道清淤1200米、整修500米",11,11,null,1,131,510,1,11,56,"此项目实施，通过帮助发展产业，改变住户生活质量，提升脱贫户脱贫质量，进一步巩固脱贫成果","基础设施+农户保障相结合"]
[303,"乡村建设行动","农村基础设施","其他","詹桥镇","水泉村","2025年詹桥镇水泉村寺西组、寺畈组烟火塘整修","新建","水泉村","2025年5月","2025年6月","水泉村","清淤600立方米，\n围栏安装90米，塘坎整修30米",6,6,null,1,131,510,1,11,56,"此项目实施，通过帮助发展产业，改变住户生活质量，提升脱贫户脱贫质量，进一步巩固脱贫成果","基础设施+农户保障相结合"]
[304,"乡村建设行动","农村基础设施","其他","詹桥镇","泰和社区","2025年詹桥镇泰和社区陈家组山塘整修","新建","陈家组","2025年5月","2025年11月","泰和社区","陈家组山塘整修",6,6,null,1,16,46,1,4,11,"为了群众出行和安全，基础设施改造，提高脱贫户和其他群众生产生活条件","基础设施+农户保障相结合"]
[305,"乡村建设行动","农村基础设施","其他","詹桥镇","泰和社区","2025年詹桥镇泰和社区詹桥港整修","新建","西岸组至龙湾组","2025年4月","2025年4月","泰和社区","河港整修700米",70,70,null,1,35,116,1,3,17,"为了群众出行和安全，基础设施改造，提高脱贫户和其他群众生产生活条件","基础设施+农户保障相结合"]
[306,"乡村建设行动","农村基础设施","农村道路建设","詹桥镇","泰和社区","2025年詹桥镇泰和社区组级公路路基拓宽及硬化","新建","西岸组至龙湾组","2025年4月","2025年10月","泰和社区","组级公路1.5公里路基拓宽及硬化",95,95,null,1,68,756,1,11,46,"为了群众出行和安全，基础设施改造，提高脱贫户和其他群众生产生活条件","基础设施+农户保障相结合"]
[307,"乡村建设行动","农村基础设施","农村道路建设","詹桥镇","泰和社区","2025年詹桥镇泰和社区照墙组道路整修","新建","照墙组","2025年1月","2025年10月","泰和社区","道路整修500米",25,25,null,1,15,43,1,4,11,"为了群众出行和安全，基础设施改造，提高脱贫户和其他群众生产生活条件","基础设施+农户保障相结合"]
[308,"乡村建设行动","农村基础设施","农村道路建设","詹桥镇","跳石村","2025年詹桥镇跳石村季岩组道路硬化","新建","季岩组","2025年5月","2025年5月","跳石村","季岩组道路硬化200米",6,6,null,1,50,231,1,5,24,"为了方便群众出行和安全，基础设施改造，提高脱贫户和其他群众生产生活条件","基础设施+农户保障相结合"]
[309,"产业发展","生产项目","种植业基地","詹桥镇","雁南村","2025年詹桥镇雁南村中药种植","新建","尧山组","2025年1月","2025年12月","雁南村","黄精种植40亩",40,40,null,null,18,82,null,1,4,"此项目实施，通过帮助发展产业，改变住户生活质量，提升脱贫户脱贫质量，进一步巩固脱贫成果","产业发展+农户就业相结合"]
[310,"乡村建设行动","农村基础设施","其他","詹桥镇","雁南村","2025年詹桥镇雁南村刘家畈港磡整修","新建","刘家组","2025年1月","2025年12月","雁南村","刘家畈港磡整修20米",3,3,null,1,12,69,1,2,5,"此项目实施提高农户生活质量，提升脱贫户脱贫质量，进一步巩固脱贫成果","基础设施+农户保障相结合"]
[311,"乡村建设行动","农村基础设施","农村道路建设","詹桥镇","雁南村","2025年詹桥镇雁南村魏家大屋道路整修","新建","魏家组","2025年1月","2025年12月","雁南村","魏家大屋道路整修150米",5,5,null,1,23,106,1,4,7,"此项目实施提高农户生活质量，提升脱贫户脱贫质量，进一步巩固脱贫成果","基础设施+农户保障相结合"]
[312,"乡村建设行动","农村基础设施","其他","詹桥镇","印石村","2025年詹桥镇印石村排柳河港整修","新建","印石村张畈组","2025年5月","2025年7月","印石村","印石村河港整修800米，高2.5米，宽1米",8,8,null,1,60,313,1,9,25,"为了群众出行和安全，基础设施改造，提高脱贫户和其他群众生产生活条件","基础设施+农户保障相结合"]
[313,"产业发展","生产项目","种植业基地","詹桥镇","余湾村","2025年詹桥镇余湾村中药材种植","新建","青咀组冷砊","2025年3月","2025年12月","余湾村","黄精种植20亩",15,15,null,null,16,55,null,9,32,"此项目实施，通过帮助发展产业，改变住户生活质量，提升脱贫户脱贫质量，进一步巩固脱贫成果","产业发展+农户就业相结合"]
[314,"产业发展","生产项目","种植业基地","詹桥镇","余湾村","2025年詹桥镇余湾村杨梅基地扩建","扩建","高畈组桃树坪","2025年1月","2025年12月","余湾村","扩建杨梅基地30亩",25,25,null,null,24,82,null,16,54,"此项目实施，通过帮助发展产业，改变住户生活质量，提升脱贫户脱贫质量，进一步巩固脱贫成果","产业发展+农户就业相结合"]
[315,"乡村建设行动","农村基础设施","农村道路建设","詹桥镇","余湾村","2025年詹桥镇余湾村桃树平杨梅基地道路整修","新建","高畈组桃树坪","2025年3月","2025年12月","余湾村","路面整修3000米",20,20,null,1,34,123,1,30,98,"为了方便群众出行和安全，基础设施改造，提高脱贫户和其他群众生产生活条件","基础设施+农户保障相结合"]
[316,"乡村建设行动","农村基础设施","农村道路建设","詹桥镇","云山村","2025年詹桥镇云山村炭坡组村级公路驳墈","新建","炭坡组","2025年3月","2025年4月","云山村","炭坡组公路驳墈9米，高6米",6,6,null,1,89,276,1,5,10,"为了群众出行和安全，基础设施改造，提高脱贫户和其他群众生产生活条件","基础设施+农户保障相结合"]
[317,"产业发展","生产项目","种植业基地","詹桥镇","詹桥社区","2025年詹桥镇詹桥社区中药材种植","新建","庄屋组","2025年1月","2025年12月","詹桥社区","种植黄精50亩、石菖蒲20亩、白芨25亩",95,95,null,null,30,120,null,2,5,"此项目实施，通过帮助发展产业，改变住户生活质量，提升脱贫户脱贫质量，进一步巩固脱贫成果","产业发展+农户就业相结合"]
[318,"乡村建设行动","农村基础设施","其他","詹桥镇","詹桥社区","2025年詹桥镇詹桥社区鸭婆港整修","新建","庄屋、冷家组","2025年1月","2025年12月","詹桥社区","整修河港700米",85,85,null,1,36,150,1,2,3,"此项目实施提高农户生活质量，提升脱贫户脱贫质量，进一步巩固脱贫成果","基础设施+农户保障相结合"]
[319,"乡村建设行动","农村基础设施","其他","詹桥镇","詹桥社区","2025年詹桥镇詹桥社区大屋港整修","新建","大屋、石湾、蒋家组","2025年1月","2025年12月","詹桥社区","整修河港1200米",90,90,null,1,35,145,1,2,7,"此项目实施提高农户生活质量，提升脱贫户脱贫质量，进一步巩固脱贫成果","基础设施+农户保障相结合"]
[320,"产业发展","生产项目","种植业基地","詹桥镇","长浩村","2025年詹桥镇长浩村中药材种植","新建","光明组、光辉组","2025年1月","2025年12月","长浩村","黄精种植基地30亩",35,35,null,null,55,162,null,15,53,"此项目实施，通过帮助发展产业，改变住户生活质量，提升脱贫户脱贫质量，进一步巩固脱贫成果","产业发展+农户就业相结合"]
[321,"乡村建设行动","农村基础设施","农村供水保障设施建设","詹桥镇","长浩村","2025年詹桥镇长浩村姚家饮水工程","新建","东头组、西坡组","2025年1月","2025年12月","长浩村","东头组、西坡组蓄水池80立方米、接饮水管5000米",30,30,null,1,89,201,1,15,54,"为了群众饮水和安全，基础设施改造，提高脱贫户和其他群众生产生活条件","基础设施+农户保障相结合"]
[322,"乡村建设行动","农村基础设施","农村道路建设","詹桥镇","长浩村","2025年詹桥镇长浩村王畈道路整修","新建","光明组、元山组","2025年1月","2025年12月","长浩村","路面整修600米",25,25,null,1,55,162,1,15,53,"为了方便群众出行和安全，基础设施改造，提高脱贫户和其他群众生产生活条件","基础设施+农户保障相结合"]
[323,"产业发展","生产项目","种植业基地","詹桥镇",null,"2025年詹桥镇石菖蒲种植","新建","詹桥镇","2025年1月","2025年12月","詹桥镇","石菖蒲种植100亩",17,17,null,14,651,1989,4,651,1989,"此项目实施，通过帮助发展产业，改变住户生活质量，提升脱贫户脱贫质量，进一步巩固脱贫成果","产业发展+农户就业相结合"]
[324,"乡村建设行动","农村基础设施","农村道路建设","詹桥镇",null,"2025年詹桥镇河港治理","新建","詹桥镇","2025年1月","2025年12月","詹桥镇","河港治理400米",15,15,null,14,651,1989,4,651,1989,"此项目实施提高农户生活质量，提升脱贫户脱贫质量，进一步巩固脱贫成果","基础设施+农户保障相结合"]
[325,"产业发展","生产项目","其他","詹桥镇",null,"2025年詹桥镇产业奖补","新建","詹桥镇","2025年1月","2025年12月","詹桥镇","带动全镇脱贫人口发展产业，提高脱贫人口收入",70,70,null,14,651,1989,4,651,1989,"带动全镇脱贫人口发展产业，提高脱贫人口收入，受益贫困人口651户1989人","产业奖补+农户就业相结合"]
[326,"就业项目","公益性岗位","公益性岗位","詹桥镇",null,"2025年詹桥镇公益岗位","新建","詹桥镇","2025年1月","2025年12月","詹桥镇","鼓励聘用\n脱贫户务工",20,20,null,14,50,50,4,50,50,"为群众及脱贫户提供就业机会，带动增收致富","公益岗位+农户就业相结合"]
[327,"乡村建设行动","农村基础设施","其他","詹桥镇",null,"2025年詹桥镇易地搬迁安置点基础设施建设","新建","詹桥镇易地搬迁安置点","2025年1月","2025年12月","詹桥镇易地搬迁安置点","安置点80户居民基础设施",20,20,null,12,80,274,4,80,274,"此项目实施，通过安置点基础设施建设，提高住户生活质量，提升脱贫户脱贫质量，进一步巩固脱贫成果","基础设施+农户保障相结合"]
[328,"产业发展","生产项目","种植业基地","詹桥镇",null,"2025年詹桥镇易地搬迁安置点产业发展","新建","詹桥镇易地搬迁安置点","2025年1月","2025年12月","詹桥镇易地搬迁安置点","扶贫车间产业配套，安置点80户居民",20,20,null,12,80,274,4,80,274,"此项目实施，通过帮助发展产业，改变住户生活质量，提升脱贫户脱贫质量，进一步巩固脱贫成果","产业发展+农户就业相结合"]
[329,"乡村建设行动","人居环境整治","村容村貌提升","詹桥镇",null,"詹桥镇农村人居环境整治提升项目","新建","詹桥镇","2025年1月","2025年12月","詹桥镇","1、农村人居环境整治提升：詹桥镇农村人居环境整治及设备设施建设（主要包括垃圾清运设备的购置、3000个垃圾桶的购置及投放），对背街小巷等进行整治；\n2、詹桥镇排水管网提质改造：对5公里下水道排水管网提质改造，对排水河段护砌1000m、宽0.8m、高4.5m等；\n3、开展“三线入地”整治：詹桥镇片区百余株废电线杆拆除、5000m长弱电管线入地及线路整改。",528.8,200,328.8,1,19873,56827,1,57,172,"紧紧围绕全面建设乡村振兴目标，以实施示范建设行动为重点和抓手，补短板、强弱项，全面推动项目区乡村\n产业提质增效、乡村环境美丽宜居、乡村群众富足富裕、乡村治理更加有效。","基础设施+农户保障相结合"]
[330,"产业发展","金融配套保险项目","扶贫小额信贷贴息","临湘市","临湘市","扶贫小额信贷贴息","续建","各乡镇","2025年1月","2025年12月","农业银行、农商行","脱贫户（包括监测户）小额信贷贴息",100,100,null,null,650,650,null,650,650,"脱贫户（包括监测户）小额信贷贴息","鼓励群众发展产业，增加收入"]
[331,"巩固三保障成果","教育","享受 “雨露计划”职业教育补助","临湘市","临湘市","享受 “雨露计划”职业教育补助","续建","各乡镇","2025年1月","2025年12月","乡村振兴局","脱贫户（包括监测户）的子女就读职业高等学院补助1500/学期",150,150,{"$nulls":3},1000,null,1000,1000,"补助1500/学期","为脱贫户学生读书提供保障"]
[332,"乡村建设行动","人居环境整治","农村卫生厕所建设(户用、公共厕所)","临湘市","临湘市","农村卫生厕所建设(户用、公共厕所)","新建、改建","各乡镇","2025年1月","2025年12月","乡村振兴局","全市1606个厕所建设",1200,1200,{"$nulls":3},4000,null,4000,4000,"全市1606个厕所建设任务奖补","改善群众生活环境"]
[333,"就业项目","就业培训","技能培训","临湘市","临湘市","致富带头人培训","新建","各乡镇","2025年1月","2025年12月","乡村振兴局","对有发展产业意愿的脱贫户、监测户进行技术培训",50,50,null,null,100,100,null,100,100,"对有发展产业意愿的脱贫户、监测户进行技术培训","鼓励群众发展生产，提高群众产业发展积极性"]
[334,"产业发展","生产项目","省重点产业同乡村振兴有效衔接资金","羊楼司镇、聂市镇等",null,"2025年省帮扶产业发展\n重点项目","改建","临湘市","2025年1月","2025年12月","临湘市农业农村局","重点支持水果、茶叶、蔬菜、中药材4类帮扶主导产业分类发展。其中巩固类重点支持品种改良、品种更新换代、新产品开发及新技术、新工艺引进，农产品精深加工，副产物综合利用和以农业产业为主体的一二三产业融合发展；升级类重点支持生产基地标准化、设施化、机械化建设，农（林）产品产地商品化处理和初加工、冷链仓储物流设施设备建设，农产品品牌打造和产销对接，促进解决农产品“卖难”问题。",375,300,75,6,430,1560,3,300,726,"通过产业直接帮扶或吸纳务工就业方式计划新带动脱贫人口数量纳入项目绩效管理，企业通过直接帮扶模式带动项目所在村发展同类产业的、有意愿合作的所有脱贫户（含监测户），且新安排务工就业脱贫人口数量不低于30人；专业合作社通过直接帮扶模式带动项目所在村本年度新识别出的有同类产业发展能力、意愿的所有监测户，且新安排就业脱贫应积极承担原项目无法兑现帮扶协议相关联的脱贫户、监测户、小农户的帮扶义务，严守防止规模性返贫底线。","企业+基地+村集体+农户，劳务用工和产业分红相结合"]
[335,"乡村建设行动","人居环境整治","保洁设施改造升级及支持村级产业发展及美丽乡村建设","相关各镇（街道）","相关各村（社区）、涉农小三场","临湘市保洁设施改造升级及支持村级产业发展及美丽乡村建设","新建、改建","临湘市相关镇（街道）、村（社区）、涉农小三场","2025年1月","2025年12月","临湘市相关镇（街道）、村（社区）、涉农小三场","每半年支持6个镇（街道）及20个村（社区）及5个涉农小三场保洁设施改造升级和全年支持20个村产业发展及美丽乡村建设",900,600,300,86,9100,34800,18,800,2366,"农村人居环境得到了大幅度提升，美丽乡村建设稳步推进。","镇、村、组、户四级联动建成农村人居环境整治提升长效机制"]
[336,"产业发展","生产项目","少数民族发展","詹桥镇、桃林镇长塘镇、聂市镇、羊楼司镇、五里街道","长浩村、余湾村、壁山村、源冲村、柳厂村、长源村、朱圣村、马垅村、龙窖山村双山村、梅池村、石壁村、新球社区","临湘市茶园低氟改造项目","新建、改建","临湘市各镇（街道）相关村、组","2025年1月","2025年12月","项目建设相关村（社区）","新建、改建低氟茶园655亩",290.2,218,72.2,13,454,1472,3,151,453,"带动周边群众就业，保障低氟黑毛茶原料供应稳定","基地+农户，劳务用工、保底收购、茶产业和旅游等相结合"]
[337,"产业发展","生产项目","种植业基地","药菇山国有林场",null,"临湘市药菇山国有林场2025年欠发达国有林场中药材培育项目","种植","临湘市药菇山国有林场","2025年1月","2025年12月","临湘市药菇山国有林场","临湘市药菇山国有林场横山、杨树坪等林班内培育杜仲、黄柏、桂皮树等名贵中药材100亩",80,60,20,null,null,118,{"$nulls":3},"促进林场经济发展，提高林场林地资源利用率；有效地保护了林场的生态环境，建成具有区域特色的种植基地；形成现代药材生产集约化产业体系，推进乡村振兴发挥重要的社会效益。","雇用林场周边部分社会劳动力清理林地、挖坑等工序。"]
[338,"产业发展","生产项目","苗圃建设","临湘市荆竹山国有林场",null,"临湘市荆竹山国有林场2024年欠发达国有林场巩固提升项目","新建","临湘市荆竹山国有林场","2025年1月","2025年11月","临湘市荆竹山国有林场","临湘市荆竹山国有林场新建苗圃30亩及相关配套设施。",120,100,20,null,null,72,{"$nulls":3},"建成具有林场特色的苗木基地，满足林场植树造林的需要，提升林场造林质量，降低苗木成本，提高造林成活率。","雇用林场周边部分社会劳动力务工等。"]
[339,"乡村建设行动","农村基础设施","农村供水保障设施建设","白石园国有林场",null,"临湘市白石园国有林场2025年欠发达国有林场基础设施建设项目","建设 ","临湘市白石园国有林场","2025年1月","2025年12月","临湘市白石园国有林场","林场黄家湾水库老旧饮水设施改造",50,40,10,null,32,86,null,8,24,"促进林场经济发展，提高林场林地资源利用率；有效地保护了林场的生态环境，饮水设施的改造使护坡的功能得到了恢复，能够有效防止雨水、洪水等自然灾害对林场造成损失，同时饮水沟的外观得到了提升，美化了林场环境，更主要的是它的使用寿命得到了延长，减少了后续维护成本。推进乡村振兴发挥重要的社会效益。","雇用林场周边部分社会劳动力清理水库周边林地清理、饮水沟的修建等工序。"]
["合   计",{"$nulls":12},{"$f":"SUM(N6:N344)","v":15528.831},{"$f":"SUM(O6:O344)","v":11341.6},4187.231,149,125724,491391,26,16513,37881]

{"sheet":"Sheet2","index":1,"n_rows":37,"n_cols":12,"rows_kept":37,"merged":[[0,0,0,11],[1,0,1,2],[2,0,4,0],[2,1,4,1],[2,2,2,4],[2,5,2,10],[2,11,4,11],[3,2,4,2],[3,3,3,4],[3,5,4,5],[3,6,4,6],[3,7,4,7],[3,8,3,10]]}
["临湘市2025年度巩固拓展脱贫攻坚成果和乡村振兴项目库拟入库项目申报分类汇总表"]
["单位：(盖章)"]
["项目类型","项目个数","资金规模和筹资方式",null,null,"受益对象",{"$nulls":5},"备注"]
[null,null,"项目预算总投资( 万元)","其中",null,"受益村数(个)","受益户数 (户 )","受益人口数\n(人)","其中"]
[{"$nulls":3},"财政资金 (万元)","其他资金 (万元)",{"$nulls":3},"受益脱贫村数 (个)","受益脱贫户数及防止返贫监测对象户(户)","受益脱贫人口数及防止返贫监测对象人口数(人)"]
["总  计",{"$f":"B7+B13+B19+B23+B24+B29+++++++++++++++B33","v":339},{"$f":"C7+C13+C19+C23+C24+C29+++++++++++++++C33","v":15528.83},11341.6,4187.23,149,125724,491391,26,16513,37881]
["一、产业发展",{"$f":"B8+B9+B10+B11+B12","v":108},{"$f":"C8+C9+C10+C11+C12","v":4240.43},3343,897.43,149,37443,152073,26,6123,16782]
["1.生产项目",50,3488,2771,717,149,29176,119732,26,5113,15123]
["2.加工流通项目"]
["3.配套设施项目",57,652.43,472,180.43,57,7617,31691,26,360,1009]
["4.产业服务支撑项目"]
["5.金融保险配套项目",1,100,100,null,null,650,650,null,650,650]
["二、就业项目",{"$f":"B14+B15+B16+B17+B18","v":14},{"$f":"C14+C15+C16+C17+C18","v":363.8},327.6,36.2,145,11810,54504,26,1117,2755]
["1.务工补助"]
["2.就业培训",1,50,50,null,null,100,100,null,100,100]
["3.创业"]
["4.乡村工匠"]
["5.公益性岗位",13,313.8,277.6,36.2,145,11710,54404,26,1017,2655]
["三、乡村建设行动",{"$f":"B20+B21+B22","v":216},{"$f":"C20+C21+C22","v":10774.6},7521,3253.6,149,76471,283814,26,8273,17344]
["1.农村基础设施",212,8025.8,5421,2604.8,149,47348,187777,26,3266,10396]
["2.人居环境整治",4,2748.8,2100,648.8,95,29123,96037,26,5007,6948]
["3.农村公共服务"]
["四、易地搬迁后扶"]
["五、巩固三保障成果",1,150,150,{"$nulls":3},1000,null,1000,1000]
["1.住房"]
["2.教育",1,150,150,{"$nulls":3},1000,null,1000,1000]
["3.健康"]
["4.综合保障"]
["六、乡村治理和精神文明"]
["1.乡村治理"]
["2.农村精神文明建设"]
["七、项目管理费"]
["八、其他"]
["1.少数民族特色村寨建设"]
["2.困难群众饮用低氟茶"]
["……"]
["注：项目类别中项目类型、二级项目类型、项目子类型需参照《1- 1-5 县级巩固拓展脱贫攻坚成果和乡村振兴项目库项目分类表》填写。"]